Cogmind - Beta 10.1 @@@ ROGUE MODE // 2020.10.12 @ 02:17:01 Player: MTF Result: Establishing 0b11! Performance ------------- Evolutions (9) 4500 Regions Visited (40) 8000 Robots Destroyed (395) 1975 Value Destroyed (19494) 19494 Prototype IDs (139) 2780 Alien Tech Used (13) 2600 Bonus (55383) 55383 TOTAL SCORE: 94732 Bonus ------- High Alert Combat Kills 2102 Follower Combat Kills 489 Entered Garrisons 200 Aligned with FarCom 300 Met Data Miner 300 Met Imprinter 300 Destroyed Z-Imprinter 1000 Triggered Deep Caves Wall 500 Exposed GOLEM Chamber 500 Met Zhirov 300 Met Warlord at Base 500 MAIN.C Attacked Warlord 500 Met Warlord at Research 2000 Invited to Help at Command 2000 Met Sigix 2000 Recovered Sigix Corpse 1000 Destroyed MAIN.C Guards 500 Met MAIN.C 5000 Destroyed MAIN.C Shell 5000 Destroyed MAIN.C 10000 Met Warlord at Command 2000 Met Architect 300 Destroyed A8 300 Destroyed A6 400 Destroyed A5 500 Destroyed A4 700 Destroyed A3 800 Destroyed A2 1000 Destroyed Architect 15000 Win 3000 Friendly Fire -3108 Cogmind --------- Core Integrity 1038/1850 Matter 248/300 Energy 618/630 System Corruption 0% Temperature Cool (12) Movement Flying (16) Location 0b11 Command Parts ------- > --- POWER (2) -------- Zero-point Reactor Zero-point Reactor > --- PROPULSION (5) --- Flying Fortress v7 Experimental Q-thruster > --- UTILITY (15) ----- Improved Fusion Compressor Lightpack 2.0 Dimensional Manipulator Zionite Metafield Generator Experimental Melee Analysis Suite Experimental Core Analyzer Experimental Armor Integrity Analyzer Femtoactuators Advanced Reaction Control System Experimental Propulsion Shielding SHELL Armor AEGIS Remote Shield > --- WEAPON (3) ------- Sigix Broadsword CR-A16's Behemoth Slayer > --- INVENTORY (24) --- Vortex Chain Reactor Vortex Chain Reactor Experimental Energy Well (1000) Experimental Energy Well (159) Experimental Energy Well (378) Dimensional Manipulator Dimensional Manipulator Advanced Reaction Control System Experimental Phase Shifter Experimental Phase Shifter Experimental Powered Armor AEGIS Remote Shield AEGIS Remote Shield Cooled Nova Cannon Tactical Quantum Warhead Core Stripper Vibroblade Sigix Corpse Peak State ------------ > --- POWER ------------ Vortex Chain Reactor > --- PROPULSION ------- Flying Fortress v7 Experimental Q-thruster > --- UTILITY ---------- Improved Fusion Compressor Lightpack 2.0 Dimensional Manipulator Dimensional Manipulator Experimental Melee Analysis Suite Experimental Armor Integrity Analyzer Femtoactuators Advanced Reaction Control System Experimental Phase Shifter Experimental Powered Armor SHELL Armor AEGIS Remote Shield > --- WEAPON ----------- Sigix Broadsword CR-A16's Behemoth Slayer > --- INVENTORY -------- Zero-point Reactor Vortex Chain Reactor Experimental Energy Well Experimental Energy Well Experimental Energy Well Experimental Energy Well Zionite Metafield Generator Advanced Reaction Control System Experimental Propulsion Shielding Experimental Utility Shielding AEGIS Remote Shield AEGIS Remote Shield Transdimensional Reconstructor High-powered Transdimensional Reconstructor Integrity Redistributor Integrity Redistributor EMDS Cooled Nova Cannon Core Stripper [Rating: 267] Favorites ----------- Power Vortex Chain Reactor Engine Light Angular Momentum Engine Power Core Reinforced Fission Core Reactor Vortex Chain Reactor Propulsion Light Treads Treads Light Treads Leg Advanced Myomer Leg Hover Unit Aerolev Unit Flight Unit Flying Fortress v7 Utility Lightpack 2.0 Device Experimental Sensor Array Storage Lightpack 2.0 Processor Experimental Signal Interpreter Hackware Deep Network Scanner Protection SHELL Armor Weapon CR-A16's Behemoth Slayer Energy Gun Heavy EM Shotgun Energy Cannon Heavy Phase Cannon Ballistic Gun Assault Rifle Launcher Grenade Launcher Special Weapon Plasma Cutter Impact Weapon Core Stripper Slashing Weapon Sigix Broadsword Piercing Weapon CR-A16's Behemoth Slayer Build | -11 -10 -10 -10 -9 -8 -8 -8 -7 -7 -7 -7 -6 -6 -6 -6 -6 -6 -6 -6 -5 -5 -5 -5 -5 -5 -5 -4 -4 -4 -4 -4 -3 -3 -3 -2 -2 -2 -1 -1 -1 ------- Run | Scr Mat Min Exi Min Mat Gar Mat Fac Low Low Dat Pro Fac Was Fac Low Low Zio Dee Pro Fac Was Fac Upp Upp War Pro Fac Upp Upp Zhi Pro Res Tes Res Qua Sec Acc Com Ac0 Slots Evolved 18 | . . . . . 4 . . 2 . . . . 2 . . . . . . . 2 . . . . . . 2 . . . . 2 . 2 . . 2 . . Power 1 | . . . . . . . . . . . . . . . . . . . . . . . . . . . . 1 . . . . . . . . . . . . Propulsion 3 | . . . . . 1 . . . . . . . . . . . . . . . 1 . . . . . . 1 . . . . . . . . . . . . Utility 13 | . . . . . 3 . . 2 . . . . 2 . . . . . . . 1 . . . . . . . . . . . 2 . 2 . . 1 . . Weapon 1 | . . . . . . . . . . . . . . . . . . . . . . . . . . . . . . . . . . . . . . 1 . . Parts Attached 817 | 2 10 4 26 4 40 11 19 20 3 6 2 9 38 5 35 6 3 6 42 3 30 4 10 7 3 11 14 11 4 2 21 9 47 45 19 42 79 85 50 30 Power 38 | . . 1 4 . 1 . . 1 . . 1 . 1 2 1 . . . 3 . . . . . . 1 . 1 . . 4 . 2 3 . . 2 . 7 3 Engine 4 | . . 1 1 . . . . 1 . . 1 . . . . . . . . . . . . . . . . . . . . . . . . . . . . . Core 6 | . . . 2 . 1 . . . . . . . 1 1 1 . . . . . . . . . . . . . . . . . . . . . . . . . Reactor 28 | . . . 1 . . . . . . . . . . 1 . . . . 3 . . . . . . 1 . 1 . . 4 . 2 3 . . 2 . 7 3 Propulsion 52 | . 2 . 5 . 13 2 11 3 1 . . . 4 . 3 2 . . . . 1 . . . . 2 . 1 . . . . 1 . . . 1 . . . Treads 27 | . 2 . 3 . 11 2 9 . . . . . . . . . . . . . . . . . . . . . . . . . . . . . . . . . Leg 3 | . . . 2 . 1 . . . . . . . . . . . . . . . . . . . . . . . . . . . . . . . . . . . Wheel . | . . . . . . . . . . . . . . . . . . . . . . . . . . . . . . . . . . . . . . . . . Hover 1 | . . . . . 1 . . . . . . . . . . . . . . . . . . . . . . . . . . . . . . . . . . . Flight 21 | . . . . . . . 2 3 1 . . . 4 . 3 2 . . . . 1 . . . . 2 . 1 . . . . 1 . . . 1 . . . Utility 422 | 1 4 . 9 . 11 . 3 12 2 3 1 7 12 3 14 4 1 1 24 1 16 2 10 5 3 8 12 9 3 . 16 3 38 14 7 21 41 48 30 23 Device 229 | . . . 2 . 3 . . 3 1 2 . 4 8 3 8 2 1 . 10 1 9 1 6 3 2 7 9 6 1 . 4 2 15 3 3 15 31 29 18 17 Storage 22 | 1 4 . 3 . 1 . . 1 . . . . . . . . . . 3 . . . . . . . . 1 . . 2 . 1 3 . . 1 . 1 . Processor 8 | . . . . . . . . 1 . . . . 1 . . . . . . . . . . . . . . . . . . . . . . . . 1 4 1 Hackware 14 | . . . . . . . . 3 . . . . 2 . . . . . . . 5 . . . . . . . . . . . 3 1 . . . . . . Protection 149 | . . . 4 . 7 . 3 4 1 1 1 3 1 . 6 2 . 1 11 . 2 1 4 2 1 1 3 2 2 . 10 1 19 7 4 6 9 18 7 5 Artifact . | . . . . . . . . . . . . . . . . . . . . . . . . . . . . . . . . . . . . . . . . . Weapon 305 | 1 4 3 8 4 15 9 5 4 . 3 . 2 21 . 17 . 2 5 15 2 13 2 . 2 . . 2 . 1 2 1 6 6 28 12 21 35 37 13 4 Energy Gun 16 | 1 . . . . 6 5 3 . . . . . . . . . . . . . . . . . . . . . . . . . . . 1 . . . . . Energy Cannon 107 | . . . . . 1 . . . . . . . 8 . 8 . 1 . 7 1 5 1 . 1 . . 1 . 1 2 . 6 4 13 5 5 15 18 3 1 Ballistic Gun 16 | . 2 . 4 2 2 . 1 . . . . . . . . . . . . . . . . . . . . . . . . . . 1 3 1 . . . . Ballistic Cannon . | . . . . . . . . . . . . . . . . . . . . . . . . . . . . . . . . . . . . . . . . . Launcher 25 | . 2 1 3 1 6 4 . 1 . 1 . 1 . . . . . . 2 . . . . 1 . . 1 . . . . . 1 . . . . . . . Special Weapon 5 | . . . . . . . . 1 . . . . 2 . . . . . . . . . . . . . . . . . 1 . . . . . . . 1 . Impact Weapon 4 | . . . . . . . . . . . . . . . . . . 2 . . . . . . . . . . . . . . . . . 1 . . 1 . Slashing Weapon 85 | . . 2 1 1 . . 1 2 . 2 . 1 11 . 9 . 1 2 4 1 6 . . . . . . . . . . . . . . 11 18 7 3 2 Piercing Weapon 47 | . . . . . . . . . . . . . . . . . . 1 2 . 2 1 . . . . . . . . . . 1 14 3 3 2 12 5 1 Special Melee Weapon . | . . . . . . . . . . . . . . . . . . . . . . . . . . . . . . . . . . . . . . . . . Unidentified Prototypes 64 | . . . 5 . 3 . 3 . . . . . . . . . . . 6 . . . . . . 4 . 1 . . 7 . 2 6 4 8 5 . 7 3 Parts Lost 24 | . . . 4 . 5 1 2 . . . 1 . 2 . . . . . 5 . . . . . . . . . . . 2 . 1 . . . . . . 1 Power 2 | . . . . . . . . . . . 1 . . . . . . . . . . . . . . . . . . . . . . . . . . . . 1 Propulsion 7 | . . . 2 . 3 . . . . . . . 2 . . . . . . . . . . . . . . . . . . . . . . . . . . . Utility 10 | . . . 2 . 1 . . . . . . . . . . . . . 4 . . . . . . . . . . . 2 . 1 . . . . . . . Weapon 5 | . . . . . 1 1 2 . . . . . . . . . . . 1 . . . . . . . . . . . . . . . . . . . . . Highest Loss Streak 4 | . . . 2 . 2 1 1 . . . 1 . 1 . . . . . 4 . . . . . . . . . . . 2 . 1 . . . . . . 1 Average Slot Usage (%) 80 | . 100 100 94 100 99 99 89 87 84 84 84 83 86 85 85 86 86 86 81 80 72 73 76 76 76 75 76 73 68 68 66 69 69 65 68 66 64 67 68 71 Engine 1 | . 14 14 8 . . . . 6 7 7 7 7 1 . . . . . . . . . . . . . . . . . . . . . . . . . . . Core 2 | . . . 3 14 8 9 9 . . . . . 4 6 6 6 6 6 . . . . . . . . . . . . . . . . . . . . . . Reactor 2 | . . . 1 . . . . . . . . . . . . . . . 5 6 5 5 5 5 5 5 5 5 5 5 5 5 4 4 4 4 3 4 4 7 Treads 7 | . 26 28 25 . 26 26 26 . . . . . . . . . . . . . . . . . . . . . . . . . . . . . . . . . Flight 7 | . . . . . . . . 22 23 23 23 23 19 20 20 20 20 20 20 20 5 5 5 5 5 5 5 10 10 10 10 10 9 9 8 8 8 8 8 8 Device 9 | . . . . . 5 9 . 6 5 5 2 5 9 10 11 6 6 4 14 20 13 11 8 6 11 10 10 9 10 10 2 9 7 9 12 11 12 17 16 23 Storage 12 | . 28 28 18 28 27 27 27 7 7 7 7 7 6 6 6 6 6 6 7 13 11 11 11 11 11 11 11 10 10 10 10 10 9 6 8 8 8 4 4 4 Processor 4 | . . . . . . . . 6 7 7 7 7 6 6 6 6 6 6 6 6 5 5 5 5 5 5 5 5 5 5 5 5 4 4 4 4 4 4 13 9 Hackware 11 | . . . . . . . . 18 23 23 23 23 26 28 26 26 26 26 8 . 18 23 23 23 23 23 23 20 15 15 15 15 21 19 17 17 17 15 1 . Protection 5 | . . . 4 . 12 9 9 3 1 1 4 1 1 . 1 6 6 8 7 6 1 . 1 3 . . . . 4 5 11 5 6 3 4 5 4 7 12 11 Energy Gun 1 | . . . . . 12 13 16 . . . . . . . . . . . . . . . . . . . . . . . . . . . . . . . . . Ballistic Gun 1 | . 27 . 9 12 5 . . . . . . . . . . . . . . . . . . . . . . . . . . . . . 1 . . . . . Launcher 1 | . . 14 8 12 . 4 . . . . . . . . . . . . . . . . . . . . . . . . . . . . . . . . . . Slashing Weapon 3 | . . 13 9 3 . . . 6 7 6 7 6 5 6 5 6 6 3 1 5 2 2 . . . . . . . . . . . . . 2 3 3 3 3 Piercing Weapon 1 | . . . . . . . . . . . . . . . . . . 1 2 . 2 2 5 5 5 5 5 5 5 5 5 5 3 4 4 1 . 3 3 4 Naked Turns . | . . . . . . . . . . . . . . . . . . . . . . . . . . . . . . . . . . . . . . . . . Heaviest Build 140 | 17 75 79 95 91 135 133 140 18 18 20 18 18 20 29 25 24 24 24 40 32 41 34 45 46 32 46 46 77 77 87 77 89 104 111 105 138 110 109 107 119 Greatest Support 130 | 20 40 40 60 60 63 62 60 18 20 20 20 20 30 30 36 36 36 24 38 38 72 72 72 72 72 72 72 79 79 79 79 79 80 105 105 105 130 105 105 130 Greatest Overweight (x) 3 | . 1 1 3 1 3 2 3 . . . . . 1 . 1 . . . 1 . . . . . . 2 . . . 1 . 1 1 1 . 1 1 1 1 1 Average Overweight (x) . | . . 1 . 1 2 2 2 . . . . . . . . . . . . . . . . . . . . . . . . . . . . . . . . . Largest Inventory Capacity 48 | 8 20 20 24 20 28 28 28 48 24 24 24 24 24 24 24 24 24 24 24 24 24 24 24 24 24 24 24 30 30 30 30 30 30 36 36 30 30 30 24 24 Average Capacity 24 | 6 14 20 14 20 27 28 28 24 24 24 24 24 24 24 24 24 24 24 21 24 24 24 24 24 24 24 24 24 30 30 30 30 30 26 30 30 30 24 24 24 Most Carried 36 | 6 19 20 20 20 28 28 28 27 24 24 24 24 24 24 24 24 24 24 24 24 24 24 24 24 24 24 24 26 27 26 30 30 30 36 33 30 30 27 24 24 Average Carried 23 | 6 12 19 12 19 25 27 27 19 24 23 22 22 23 23 23 24 23 23 19 23 23 23 23 24 23 23 24 23 26 25 27 29 28 25 29 29 29 23 22 23 Final Capacity 36 | 8 20 20 20 20 28 28 28 24 24 24 24 24 24 24 24 24 24 24 24 24 24 24 24 24 24 24 24 30 30 30 30 30 30 36 30 30 30 24 24 24 Final Carried 36 | 6 19 20 20 20 28 27 27 24 24 24 22 22 24 24 24 24 24 24 24 24 24 24 24 24 24 24 24 27 26 26 30 30 30 36 30 30 28 22 24 21 Class Distribution -------------------- 26% | Hauler-Mutant 22% | Wizard-Sprinter 20% | Hacker-Sprinter 11% | Machinist-Sprinter 7% | Hacker-Mutant 6% | Mutant Dominant Class ---------------- Mutant | -10/Materials Hauler-Mutant | -10/Mines Mutant | -10/Exiles Hauler-Mutant | -9/Mines Hauler-Mutant | -8/Materials Hauler-Mutant | -8/Garrison Hauler-Mutant | -8/Materials Hauler-Sprinter | -7/Factory Hacker-Sprinter | -7/Lower Caves Hacker-Sprinter | -7/Lower Caves Hacker-Sprinter | -7/Data Miner Hacker-Sprinter | -6/Proximity Caves Hacker-Sprinter | -6/Factory Hacker-Sprinter | -6/Waste Hacker-Mutant | -6/Factory Hacker-Sprinter | -6/Lower Caves Hacker-Mutant | -6/Lower Caves Hacker-Mutant | -6/Zion Hauler-Mutant | -6/Deep Caves Hauler-Mutant | -5/Proximity Caves Hacker-Sprinter | -5/Factory Hacker-Sprinter | -5/Waste Hacker-Sprinter | -5/Factory Hacker-Sprinter | -5/Upper Caves Hacker-Sprinter | -5/Upper Caves Hacker-Sprinter | -5/Warlord Hacker-Sprinter | -4/Proximity Caves Hacker-Sprinter | -4/Factory Hacker-Sprinter | -4/Upper Caves Hacker-Sprinter | -4/Upper Caves Hacker-Mutant | -4/Zhirov Hacker-Sprinter | -3/Proximity Caves Wizard-Sprinter | -3/Research Wizard-Sprinter | -3/Testing Wizard-Sprinter | -2/Research Wizard-Sprinter | -2/Quarantine Wizard-Sprinter | -2/Section 7 Wizard-Sprinter | -1/Access Machinist-Sprinter | -1/Command Machinist-Sprinter | -1/Access_0 Resources | -11 -10 -10 -10 -9 -8 -8 -8 -7 -7 -7 -7 -6 -6 -6 -6 -6 -6 -6 -6 -5 -5 -5 -5 -5 -5 -5 -4 -4 -4 -4 -4 -3 -3 -3 -2 -2 -2 -1 -1 -1 ----------- Run | Scr Mat Min Exi Min Mat Gar Mat Fac Low Low Dat Pro Fac Was Fac Low Low Zio Dee Pro Fac Was Fac Upp Upp War Pro Fac Upp Upp Zhi Pro Res Tes Res Qua Sec Acc Com Ac0 Matter Collected 11431 | 232 159 110 722 119 746 169 197 456 25 103 10 56 513 50 279 29 104 76 444 25 338 104 80 115 55 100 190 110 40 30 210 35 630 532 274 539 1453 1040 490 442 Remotely . | . . . . . . . . . . . . . . . . . . . . . . . . . . . . . . . . . . . . . . . . . Salvage Created 25112 | 98 166 516 384 203 2117 311 1378 306 . 67 . 12 762 . 673 . 64 . 497 . 647 135 209 161 341 . 226 800 39 . 244 . 1185 732 1131 1115 2068 2876 1707 3942 Parts 1167 | 2 9 24 46 9 127 13 49 25 . 2 . 1 34 . 19 . 1 . 24 . 21 9 1 17 3 . 17 29 . . 18 . 71 29 48 21 85 154 42 217 Haulers Intercepted 34 | . 1 . . . 4 . 3 1 . . . . 4 . 2 . . . . . 2 . . . . . . 3 . . . . 1 2 5 2 4 . . . Recyclers Shooed 12 | . 1 . . . 3 . . 1 . . . . . . 1 . . . . . 2 . . . . . . 1 . . . . . 1 1 . . 1 . . Parts Field Recycled . | . . . . . . . . . . . . . . . . . . . . . . . . . . . . . . . . . . . . . . . . . Retrieved Matter . | . . . . . . . . . . . . . . . . . . . . . . . . . . . . . . . . . . . . . . . . . Parts Self-Destructed 80 | . . . . . . . . . 2 1 . 1 . . . . 3 . . . . . . 11 17 34 11 . . . . . . . . . . . . . Prevented 3 | . . . . . . . . . . . . . . . . . . . . . . . . . 1 1 . . . 1 . . . . . . . . . . Kills | -11 -10 -10 -10 -9 -8 -8 -8 -7 -7 -7 -7 -6 -6 -6 -6 -6 -6 -6 -6 -5 -5 -5 -5 -5 -5 -5 -4 -4 -4 -4 -4 -3 -3 -3 -2 -2 -2 -1 -1 -1 ------- Run | Scr Mat Min Exi Min Mat Gar Mat Fac Low Low Dat Pro Fac Was Fac Low Low Zio Dee Pro Fac Was Fac Upp Upp War Pro Fac Upp Upp Zhi Pro Res Tes Res Qua Sec Acc Com Ac0 Combat Hostiles Destroyed 230 | . 1 3 2 7 37 10 17 4 . 3 . 3 2 . 1 . . . 5 . . . . 6 . . 6 1 . . . . 15 2 7 7 15 20 14 42 Melee 85 | . . . 1 . . . . . . . . . 2 . 1 . . . 2 . . . . . . . . . . . . . 8 2 1 4 4 9 9 42 Guns 41 | . 1 . 1 1 20 4 10 . . . . . . . . . . . . . . . . . . . . . . . . . . . 2 2 . . . . Cannons 6 | . . . . . . . . . . . . . . . . . . . 1 . . . . . . . . . . . . . . . 1 . 2 1 1 . AOE 59 | . . 3 . 6 15 6 2 4 . 3 . 3 . . . . . . 1 . . . . 5 . . 5 . . . . . 6 . . . . . . . Classes Destroyed 30 | 1 3 3 3 . 7 . . . . 1 . . 1 . . . . . 2 . . 1 . 1 1 . 1 . . . . . . . 2 1 1 1 . . Worker 9 | . . 1 . . 1 . . . . . . . 2 . . . . . . . . . . . . . . . . . . . 1 . . . 2 1 1 . Builder 9 | . . 1 . . 2 . 1 1 . . . . . . . . . . . . 1 . . . . . . . . . . . . 1 . . . 2 . . Tunneler 2 | . 1 1 . . . . . . . . . . . . . . . . . . . . . . . . . . . . . . . . . . . . . . Hauler 34 | . 1 . . . 4 . 3 1 . . . . 4 . 2 . . . . . 2 . . . . . . 3 . . . . 1 2 5 2 4 . . . Recycler 34 | 1 1 6 . . 4 . 3 1 . . . . 1 . 2 . . . . . 3 . 1 . . . . 2 . . . . 1 2 . . 1 3 2 . Minesweeper 1 | . . . . . . . . . . . . . . . . . . . . . . . . . 1 . . . . . . . . . . . . . . . Mechanic 3 | . . . . . 1 . . 1 . . . . . . . . . . . . . . . . . . . . . . . . . . . 1 . . . . Operator 8 | . . . . . 1 . . 2 . . . . 1 . . . . . . . 1 . . . . . . . . . . . . . 1 1 . 1 . . Drone 1 | . . . . . . . . . . . . . . . . . . . . . . . . . . . . . . . . . . . . . . 1 . . Turret 1 | . . . 1 . . . . . . . . . . . . . . . . . . . . . . . . . . . . . . . . . . . . . Watcher 37 | . . . . . 2 . . 2 . . . . 2 . 2 . . . . . 2 . 1 . . . . 4 . . . . 5 2 1 1 4 7 2 . Swarmer 48 | . . 3 . . 10 4 . 4 . 3 . 3 . . . . . . . . . . . 5 . . 5 . . . . . 6 . 1 . 4 . . . Grunt 44 | . 1 . . 7 12 2 13 . . . . . . . . . . . . . . . . . . . . . . . . . . 1 . 1 2 1 4 . Brawler 3 | . . . . . 1 1 1 . . . . . . . . . . . . . . . . . . . . . . . . . . . . . . . . . Duelist 1 | . . . . . 1 . . . . . . . . . . . . . . . . . . . . . . . . . . . . . . . . . . . Protector 2 | . . . . . . . . . . . . . . . . . . . . . . . . . . . . . . . . . . . 1 1 . . . . Researcher 1 | . . . . . . . . . . . . . . . . . . . . . . . . . . . . . . . . . . . . . 1 . . . Sentry 25 | . . . . . 11 2 3 . . . . . 1 . . . . . . . . . . . . . . . . . . . . . . . 3 5 . . Hunter 7 | . . . . . 2 1 . . . . . . . . . . . . . . . . . . . . . . . . . . . . 2 1 . . 1 . Programmer 21 | . . . . . . . . . . . . . 1 . 1 . . . . . . . . . . . . . . . . . 8 1 . . . 6 4 . Behemoth 16 | . . . . . . . . . . . . . . . . . . . . . . . . 1 . . 1 1 . . . . 1 . 2 . 3 7 . . S7 Guard 3 | . . . . . . . . . . . . . . . . . . . . . . . . . . . . . . . . . . . . . 3 . . . M Guard 2 | . . . . . . . . . . . . . . . . . . . . . . . . . . . . . . . . . . . . . . . 2 . Enhanced Grunt 26 | . . . . . . . . . . . . . . . . . . . . . . . . . . . . . . . . . . . . . . . . 26 Enhanced Sentry 2 | . . . . . . . . . . . . . . . . . . . . . . . . . . . . . . . . . . . . . . . . 2 Enhanced Hunter 7 | . . . . . . . . . . . . . . . . . . . . . . . . . . . . . . . . . . . . . . . . 7 Lightning 3 | . . . . . . . . . . . . . . . . . . . . . . . . . . . . . . . . . . . . 3 . . . . Combat Programmer 2 | . . . . . . . . . . . . . . . . . . . . . . . . . . . . . . . . . . . . . . . 2 . Striker 1 | . . . . . . . . . . . . . . . . . . . . . . . . . . . . . . . . . . . 1 . . . . . Fortress 1 | . . . . . . . . . . . . . . . . . . . . . . . . . . . . . . . . . . . . 1 . . . . Zionite 8 | . . . 8 . . . . . . . . . . . . . . . . . . . . . . . . . . . . . . . . . . . . . Z-Technician 5 | . . . . . . . . . . . . . . . . . . . 5 . . . . . . . . . . . . . . . . . . . . . Z-Light 2 | . . . . . . . . . . . . . . . . . . . 2 . . . . . . . . . . . . . . . . . . . . . Samaritan 2 | . . . . . . . . . . . . . . . . . . . . . . . . . . . 1 . 1 . . . . . . . . . . . Tinkerer 1 | . . . . . . . . . . 1 . . . . . . . . . . . . . . . . . . . . . . . . . . . . . . Assembled 1 | . . . 1 . . . . . . . . . . . . . . . . . . . . . . . . . . . . . . . . . . . . . Golem 2 | . . . . . . . . . . . . . . . . . . . 2 . . . . . . . . . . . . . . . . . . . . . Wasp 1 | . . . . . . . . . . . . . . . . . . . . . . . 1 . . . . . . . . . . . . . . . . . Martyr 2 | . . . . . . . . . . . . . . . . . . . . . . 2 . . . . . . . . . . . . . . . . . . Best Kill Streak 9 | 1 2 3 4 4 7 8 5 6 . 3 . 3 3 . 1 . . . 5 . 1 . 1 5 1 . 5 2 . . 2 . 6 1 3 4 3 3 4 9 Combat Bots Only 9 | . 1 3 1 4 6 8 5 4 . 3 . 3 1 . 1 . . . 3 . . . . 5 . . 5 1 . . . . 6 1 2 3 3 3 4 9 Max Kills in Single Turn 5 | 1 1 2 1 2 3 3 2 3 . 2 . 1 1 . 1 . . . 1 . 1 1 1 5 1 . 5 1 1 . 1 . 3 1 1 1 1 1 1 1 Gunslinging . | . . . . . . . . . . . . . . . . . . . . . . . . . . . . . . . . . . . . . . . . . Exploded 5 | . . 2 . 2 3 3 2 2 . 2 . 1 . . . . . . 1 . . . . 5 . . 5 . . . . . 3 . . . . . . . Melee 1 | . . . 1 . . . . . . . . . 1 . 1 . . . 1 . . . . . . . . . . . . . 1 1 1 1 1 1 1 1 Uniques/NPCs Destroyed 16 | . . . 4 . . . . . . . . . . . . . . . 1 . . . . . . . . . . . 3 . . . . . . . 1 7 8R-AWN (-10/Exiles) EX-DEC (-10/Exiles) EX-HEX (-10/Exiles) EX-BIN (-10/Exiles) Z-Imprinter (-6/Deep Caves) Zhirov (-4/Zhirov) Perun (-4/Zhirov) Svarog (-4/Zhirov) MAIN.C (-1/Command) A2 (-1/Access_0) A3 (-1/Access_0) Architect (-1/Access_0) A6 (-1/Access_0) A5 (-1/Access_0) A8 (-1/Access_0) A4 (-1/Access_0) Combat | -11 -10 -10 -10 -9 -8 -8 -8 -7 -7 -7 -7 -6 -6 -6 -6 -6 -6 -6 -6 -5 -5 -5 -5 -5 -5 -5 -4 -4 -4 -4 -4 -3 -3 -3 -2 -2 -2 -1 -1 -1 -------- Run | Scr Mat Min Exi Min Mat Gar Mat Fac Low Low Dat Pro Fac Was Fac Low Low Zio Dee Pro Fac Was Fac Upp Upp War Pro Fac Upp Upp Zhi Pro Res Tes Res Qua Sec Acc Com Ac0 Damage Taken 16396 | . . 72 921 124 1879 304 971 133 . 23 180 173 133 . 375 . 310 . 1530 . 105 . 44 214 . . 125 75 . . 1129 . 955 4 171 296 567 508 954 4121 Core 1648 | . . 17 67 35 136 45 54 16 . . 43 . 52 . 45 . 148 . 394 . 69 . . . . . 33 35 . . 111 . 39 . 18 . 17 7 55 212 Absorbed by Shields 5488 | . . . . . 183 . . . . . . . . . . . . . . . . . . . . . . . . . . . . 4 . 28 113 532 945 3683 Core Remaining (%) 72 | 100 . . . 52 . . 57 . . . . 91 . . . . . . . 24 . . . . . . 89 . . . . 87 . 97 . . 68 . . 56 Volleys Fired 734 | 4 13 3 65 11 102 16 47 5 . 2 . 6 13 . 14 . 1 . 35 1 33 7 14 5 9 12 13 46 2 4 . 17 18 36 37 25 59 45 12 2 Largest 2 | 2 2 1 2 2 2 2 2 1 . 1 . 1 1 . 1 . 1 . 2 1 1 1 1 1 1 1 1 1 1 1 . 1 1 1 2 1 1 1 1 1 Hottest 200 | 60 46 30 40 40 100 100 100 39 . 39 . 39 90 . 90 . 90 . 150 90 98 98 98 98 98 98 98 98 98 98 . 113 113 200 94 50 150 150 150 70 Shots Fired 997 | 8 26 3 158 13 194 25 94 5 . 2 . 6 13 . 14 . 1 . 39 1 33 7 14 5 9 12 13 46 2 4 . 17 18 36 38 25 57 45 12 2 Gun 522 | 8 26 . 147 6 186 20 94 . . . . . . . . . . . . . . . . . . . . . . . . . . 7 14 14 . . . . Cannon 410 | . . . . . . . . . . . . . 11 . 14 . 1 . 36 1 33 7 14 4 9 12 12 46 2 4 . 17 15 29 24 11 57 45 4 2 Launcher 54 | . . 3 11 7 8 5 . 4 . 2 . 6 . . . . . . 3 . . . . 1 . . 1 . . . . . 3 . . . . . . . Special 11 | . . . . . . . . 1 . . . . 2 . . . . . . . . . . . . . . . . . . . . . . . . . 8 . Kinetic 319 | 4 26 . 147 6 100 . 1 . . . . . . . . . . . . . . . . . . . . . . . . . . 7 14 14 . . . . Thermal 319 | . . . . . . . . 1 . . . . 12 . 14 . 1 . 18 1 33 7 14 4 9 12 12 46 2 4 . 17 15 26 13 11 10 26 11 . Explosive 51 | . . 3 11 7 8 5 . 4 . 2 . 6 . . . . . . . . . . . 1 . . 1 . . . . . 3 . . . . . . . Electromagnetic 307 | 4 . . . . 86 20 93 . . . . . . . . . . . 21 . . . . . . . . . . . . . . 3 11 . 47 19 1 2 Robot Hit Streak 27 | 6 7 2 22 4 27 7 17 1 . . . 1 2 . . . . . 5 . 3 6 . . . . . 1 . . . . 2 4 4 3 22 14 7 8 Robot Miss Streak 7 | 1 3 . 5 1 5 2 3 3 . . . 3 . . . . . . 2 . . 1 . . . . . 1 . . . . 7 1 3 3 1 1 1 1 Penetration Max 1 | . . . . . . . . . . . . . . . . . . . . . . . . . . . . . . . . . . . . 1 . 1 . 1 Secondary Targets 4 | . . . . . 3 . 1 . . . . . . . . . . . . . . . . . . . . . . . . . . . . . . . . . Max Gunslinging Chain 1 | . . . . . 1 . 1 . . . . . . . . . . . . . . . . . . . . . . . . . . . . . . . . . Autonomous 41 | . . . 41 . . . . . . . . . . . . . . . . . . . . . . . . . . . . . . . . . . . . . Shots Hit Robots 1152 | 7 19 14 115 6 145 19 81 10 2 3 1 1 19 . 26 . 2 . 30 . 19 9 4 2 6 . 2 24 2 . 18 . 40 23 26 63 64 63 89 198 Core Hits 616 | 2 6 12 36 10 92 16 46 16 . 5 . 4 9 . 8 . 1 . 21 . 9 3 2 8 2 . 7 11 1 . 9 . 35 10 17 29 36 25 31 97 Critical Hits 138 | . . 1 1 . 1 . 4 . . . . . . . 1 . . . 1 . . . . . 2 . . 3 . . 2 . 7 5 4 10 14 15 21 46 Critical Kills 47 | . . 1 . . . . 1 . . . . . . . . . . . . . . . . . . . . 2 . . . . 5 1 2 4 4 8 2 17 Critical Parts Destroyed 76 | . . . . . 1 . 3 . . . . . . . 1 . . . 1 . . . . . 1 . . 1 . . 1 . 2 4 2 5 4 7 14 29 Melee Attacks 1337 | . . 17 15 19 . . 2 32 3 10 5 2 76 . 79 . 5 12 32 4 51 3 12 6 9 1 2 49 5 5 21 2 79 56 53 106 67 145 108 244 Kinetic 8 | . . . . . . . . . . . . . . . . . . . . . . . . . . . . . . . . . . . . 1 . . 7 . Impact 3 | . . . . . . . . . . . . . . . . . . 3 . . . . . . . . . . . . . . . . . . . . . . Slashing 844 | . . 17 15 19 . . 2 32 3 10 5 2 76 . 79 . 5 9 15 4 40 3 . . . . . . . . . . . . . 73 60 105 75 195 Piercing 482 | . . . . . . . . . . . . . . . . . . . 17 . 11 . 12 6 9 1 2 49 5 5 21 2 79 56 53 32 7 40 26 49 Sneak Attacks 116 | . . 11 . . . . . 6 . 3 1 . 6 . 5 . . . 7 . 7 3 3 . 1 . 1 7 2 . 1 . 4 5 9 5 11 14 4 . Combat Hostiles 13 | . . . . . . . . . . . . . 1 . . . . . . . . . . . . . . . . . . . . . 2 . 4 6 . . Follow-up Attacks 52 | . . . . . . . . . . . . . . . . . . . . . . . . . . . . . . . . . . . . . . 6 8 38 Damage Inflicted 74700 | 90 268 1336 2653 385 3493 781 2099 1604 119 833 186 379 1714 . 2281 . 226 . 1602 . 1858 691 407 352 945 . 567 2450 372 . 1148 . 3181 1884 2204 2688 5897 6488 7177 16342 Guns 6670 | 90 262 . 1887 22 2116 312 1799 . . . . . . . . . . . . . . . . . . . . . . . . . . 39 62 81 . . . . Cannons 2716 | . . . . . . . . . . . . . . . . . . . 178 . 34 238 . . . . . 66 . . . . 118 129 334 . 976 536 56 51 Explosions 5958 | . . 253 431 363 1333 469 281 644 . 359 . 379 . . . . . . 142 . . . . 321 . . 347 . . . . . 636 . . . . . . . Melee 59198 | . . 1083 335 . . . . 960 119 474 186 . 1714 . 2281 . 226 . 1282 . 1824 453 407 31 945 . 220 2384 372 . 1148 . 2427 1716 1808 2607 4921 5952 7032 16291 Ramming 69 | . 6 . . . 44 . 19 . . . . . . . . . . . . . . . . . . . . . . . . . . . . . . . . . Kinetic 3318 | 39 262 . 1887 22 824 . . . . . . . . . . . . . . . . . . . . . . . . . . . . 39 62 81 . . 102 . Thermal 965 | . . . . . 139 . 281 . . . . . . . . . . . . . 34 238 . . . . . 66 . . . . 118 . . . . . 89 . Explosive 5396 | . . 253 431 363 1194 469 . 644 . 359 . 379 . . . . . . . . . . . 321 . . 347 . . . . . 636 . . . . . . . Electromagnetic 5856 | 51 . . . . 1292 312 1799 . . . . . . . . . . . 320 . . . . . . . . . . . . . . 129 334 . 976 536 56 51 Impact . | . . . . . . . . . . . . . . . . . . . . . . . . . . . . . . . . . . . . . . . . . Slashing 39900 | . . 1083 335 . . . . 960 119 474 186 . 1714 . 2281 . 226 . 147 . 1418 453 . . . . . . . . . . . . . 1438 4703 5426 5150 13787 Piercing 19196 | . . . . . . . . . . . . . . . . . . . 1135 . 406 . 407 31 945 . 220 2384 372 . 1148 . 2427 1716 1808 1169 218 526 1780 2504 Highest Corruption 6 | . . . . . . . . . . . . . 1 1 4 4 6 6 . . . . . . . . . . . . 1 1 2 2 . 4 4 . . . Average Corruption 2 | . . . . . . . . . . . . . 1 1 3 4 5 6 . . . . . . . . . . . . 1 1 1 2 . 4 4 . . . Corruption Purged 1 | . . . . . . . . . . . . . . 1 . . . . . . . . . . . . . . . . . . . . . . . . . . Effects 100 | . . . . . . . . . . . . . 5 1 7 2 4 . . . . . . . . . . . . . . 3 14 11 . 22 31 . . . Message Errors 26 | . . . . . . . . . . . . . 2 1 3 . 2 . . . . . . . . . . . . . . 1 6 5 . 2 4 . . . Matter Fused 14 | . . . . . . . . . . . . . . . 2 1 1 . . . . . . . . . . . . . . . . . . 4 6 . . . Heat Flow Errors 10 | . . . . . . . . . . . . . . . . 1 1 . . . . . . . . . . . . . . . 3 1 . 3 1 . . . Energy Discharges 12 | . . . . . . . . . . . . . 1 . 1 . . . . . . . . . . . . . . . . 1 2 1 . 2 4 . . . Parts Rejected 2 | . . . . . . . . . . . . . . . . . . . . . . . . . . . . . . . . . . . . . 2 . . . Data Loss (minor) 13 | . . . . . . . . . . . . . 2 . . . . . . . . . . . . . . . . . . 1 1 1 . 3 5 . . . Targeting Errors 21 | . . . . . . . . . . . . . . . 1 . . . . . . . . . . . . . . . . . 2 3 . 8 7 . . . Weapon Failures 2 | . . . . . . . . . . . . . . . . . . . . . . . . . . . . . . . . . . . . . 2 . . . Overload Shots 5 | . . . . . . . . . . . . . . . . . . . . . . . . . . . . . . . . . . 1 . . 1 1 2 . Effects 1 | . . . . . . . . . . . . . . . . . . . . . . . . . . . . . . . . . . . . . . 1 . . Heat Surge 1 | . . . . . . . . . . . . . . . . . . . . . . . . . . . . . . . . . . . . . . 1 . . Overflow Damage 8123 | . . 71 . . 29 3 23 148 40 91 126 . 389 . 551 . . . 206 . 519 . 194 13 407 . 5 530 151 . . . 269 386 453 391 747 1051 507 823 Projectiles 4 | . . . . . . . . . . . . . . . . . . . . . 4 . . . . . . . . . . . . . . . . . . . Explosions 141 | . . 38 . . 28 3 23 21 . . . . . . . . . . . . . . . 13 . . 5 . . . . . 10 . . . . . . . Melee 7978 | . . 33 . . 1 . . 127 40 91 126 . 389 . 551 . . . 206 . 515 . 194 . 407 . . 530 151 . . . 259 386 453 391 747 1051 507 823 Knockbacks . | . . . . . . . . . . . . . . . . . . . . . . . . . . . . . . . . . . . . . . . . . Impact . | . . . . . . . . . . . . . . . . . . . . . . . . . . . . . . . . . . . . . . . . . Kinetic . | . . . . . . . . . . . . . . . . . . . . . . . . . . . . . . . . . . . . . . . . . Secondary . | . . . . . . . . . . . . . . . . . . . . . . . . . . . . . . . . . . . . . . . . . Self-Inflicted Damage 617 | . . . 10 41 258 8 144 . . . . 34 . . . . . . 50 . . . . 17 . . 31 . . . . . 24 . . . . . . . Shots 19 | . . . 1 1 6 2 4 . . . . 1 . . . . . . 1 . . . . 1 . . 1 . . . . . 1 . . . . . . . Rammed 3 | . . . . . 2 . 1 . . . . . . . . . . . . . . . . . . . . . . . . . . . . . . . . . Targets Rammed 6 | . 1 . . . 3 . 2 . . . . . . . . . . . . . . . . . . . . . . . . . . . . . . . . . Kicked . | . . . . . . . . . . . . . . . . . . . . . . . . . . . . . . . . . . . . . . . . . Crushed 3 | . 1 . . . 1 . 1 . . . . . . . . . . . . . . . . . . . . . . . . . . . . . . . . . Highest Temperature 448 | . . . 128 21 448 108 330 8 . 7 . 12 92 . 102 219 136 . 369 56 330 147 218 219 190 144 225 308 112 134 . 158 202 124 56 165 132 73 114 . Average Temperature 85 | . . . 55 11 92 35 119 4 . 5 . 6 35 . 38 114 59 . 133 30 82 89 73 89 78 81 97 71 57 67 . 62 61 40 28 59 53 39 73 . Received Heat Transfer 2186 | . . 9 . 36 566 81 396 . . . 24 21 18 . 27 . . . 300 . . . 9 36 . . . 9 . . 162 . 9 . 27 99 27 4 60 266 Effects 10 | . . . . . 6 . . . . . . . . . . . . . 2 . . . . . . . 2 . . . . . . . . . . . . . Shutdowns 2 | . . . . . 2 . . . . . . . . . . . . . . . . . . . . . . . . . . . . . . . . . . . Energy Bleed 1 | . . . . . . . . . . . . . . . . . . . 1 . . . . . . . . . . . . . . . . . . . . . Interference 5 | . . . . . 3 . . . . . . . . . . . . . . . . . . . . . 2 . . . . . . . . . . . . . Short Circuit 1 | . . . . . . . . . . . . . . . . . . . 1 . . . . . . . . . . . . . . . . . . . . . Damage (minor) 1 | . . . . . 1 . . . . . . . . . . . . . . . . . . . . . . . . . . . . . . . . . . . Siege Activations . | . . . . . . . . . . . . . . . . . . . . . . . . . . . . . . . . . . . . . . . . . Robots Corrupted 20 | . . . . . 3 . 5 . . . . . . . . . . . 1 . . . . . . . . . . . . . . 1 1 . 6 3 . . Combat Hostiles 18 | . . . . . 2 . 5 . . . . . . . . . . . 1 . . . . . . . . . . . . . . . 1 . 6 3 . . Parts Fried 47 | . . . . . 14 2 15 . . . . . . . . . . . 3 . . . . . . . . . . . . . . . 3 . 7 2 . 1 Impact Corruptions 1 | . . . . . 1 . . . . . . . . . . . . . . . . . . . . . . . . . . . . . . . . . . . Robots Melted . | . . . . . . . . . . . . . . . . . . . . . . . . . . . . . . . . . . . . . . . . . Combat Hostiles . | . . . . . . . . . . . . . . . . . . . . . . . . . . . . . . . . . . . . . . . . . Parts Melted 1 | . . . . . . . . . . . . . . . . . . . . . . . . . . . . . . . . . . . 1 . . . . . Heat Transferred 1016 | . . . . . 150 . 350 . . . . . . . . . . . . . 37 259 . . . . . 74 . . . . 111 . . . . . 35 . Parts Sabotaged . | . . . . . . . . . . . . . . . . . . . . . . . . . . . . . . . . . . . . . . . . . Parts Stolen . | . . . . . . . . . . . . . . . . . . . . . . . . . . . . . . . . . . . . . . . . . Parts Stripped . | . . . . . . . . . . . . . . . . . . . . . . . . . . . . . . . . . . . . . . . . . Power Chain Reactions 10 | . . . . . 3 . 6 . . . . . . . . . . . 1 . . . . . . . . . . . . . . . . . . . . . Missiles Intercepted . | . . . . . . . . . . . . . . . . . . . . . . . . . . . . . . . . . . . . . . . . . Alert | -11 -10 -10 -10 -9 -8 -8 -8 -7 -7 -7 -7 -6 -6 -6 -6 -6 -6 -6 -6 -5 -5 -5 -5 -5 -5 -5 -4 -4 -4 -4 -4 -3 -3 -3 -2 -2 -2 -1 -1 -1 ------- Run | Scr Mat Min Exi Min Mat Gar Mat Fac Low Low Dat Pro Fac Was Fac Low Low Zio Dee Pro Fac Was Fac Upp Upp War Pro Fac Upp Upp Zhi Pro Res Tes Res Qua Sec Acc Com Ac0 Peak Influence 888 | 5 46 80 . 130 826 888 711 859 . . . . 636 146 553 . . . . . 185 61 746 . . . . 308 . . . . 834 579 667 586 341 470 666 . Initial 506 | . 3 . . . 40 506 432 291 . . . . 44 146 102 . . . . . . 26 34 . . . . 88 . . . . . 259 11 375 27 24 277 . Average 262 | 3 27 30 . 38 295 782 531 470 . . . . 343 146 216 . . . . . 59 44 254 . . . . 195 . . . . 332 225 343 367 174 131 490 . Maximum Alert Level 3 | . . . . . 3 3 3 3 . . . . 2 . 2 . . . . . . . 3 . . . . 1 . . . . 3 2 2 2 1 2 2 . Low Security (%) 43 | 100 100 100 . 100 46 . . . . . . . 19 100 64 . . . . . 100 100 16 . . . . 52 . . . . 30 30 27 12 54 80 . . Level 1 19 | . . . . . 26 . 6 21 . . . . 33 . 4 . . . . . . . 82 . . . . 47 . . . . 23 68 34 28 45 14 2 . Level 2 32 | . . . . . 23 17 84 69 . . . . 46 . 31 . . . . . . . . . . . . . . . . . 37 . 38 59 . 4 97 . Level 3 4 | . . . . . 4 82 8 8 . . . . . . . . . . . . . . 1 . . . . . . . . . 9 . . . . . . . Level 4 . | . . . . . . . . . . . . . . . . . . . . . . . . . . . . . . . . . . . . . . . . . Level 5 . | . . . . . . . . . . . . . . . . . . . . . . . . . . . . . . . . . . . . . . . . . High Security . | . . . . . . . . . . . . . . . . . . . . . . . . . . . . . . . . . . . . . . . . . Max Security . | . . . . . . . . . . . . . . . . . . . . . . . . . . . . . . . . . . . . . . . . . Squads Dispatched 54 | . . . . . 8 . 3 2 . . . . 4 . 3 . . . . . 3 . 1 . . . . 4 . . . . 3 7 1 7 3 3 2 . Investigation 12 | . . . . . 1 . 3 1 . . . . 2 . 1 . . . . . 1 . 1 . . . . . . . . . 1 1 . . . . . . Extermination 14 | . . . . . . . . . . . . . 1 . 2 . . . . . 1 . . . . . . 1 . . . . 1 1 . 2 2 1 2 . Reinforcement 23 | . . . . . 3 . . 1 . . . . 1 . . . . . . . 1 . . . . . . 3 . . . . 1 5 1 4 1 2 . . Assault 2 | . . . . . 1 . . . . . . . . . . . . . . . . . . . . . . . . . . . . . . 1 . . . . Garrison 3 | . . . . . 3 . . . . . . . . . . . . . . . . . . . . . . . . . . . . . . . . . . . Intercept . | . . . . . . . . . . . . . . . . . . . . . . . . . . . . . . . . . . . . . . . . . Construction Impeded 5 | . . . . . . . . 1 . . . . . . . . . . . . . . . . . . . 1 . . . . 1 1 . . . 1 . . Haulers Reinforced 6 | . . . . . . . . . . . . . 1 . . . . . . . . . . . . . . 2 . . . . . 2 . . 1 . . . Stealth | -11 -10 -10 -10 -9 -8 -8 -8 -7 -7 -7 -7 -6 -6 -6 -6 -6 -6 -6 -6 -5 -5 -5 -5 -5 -5 -5 -4 -4 -4 -4 -4 -3 -3 -3 -2 -2 -2 -1 -1 -1 --------- Run | Scr Mat Min Exi Min Mat Gar Mat Fac Low Low Dat Pro Fac Was Fac Low Low Zio Dee Pro Fac Was Fac Upp Upp War Pro Fac Upp Upp Zhi Pro Res Tes Res Qua Sec Acc Com Ac0 Distress Signals 46 | . 1 1 . 1 3 . . . . . . . . . 1 . . . . . 1 . . . . . . . . . . . 2 2 8 1 5 2 18 . Communications Jammed 16 | . . . . . . . . . . . . . . . . . . . . . . . . . . . . . . . . . . . . . . 16 . . Distress Signals 3 | . . . . . . . . . . . . . . . . . . . . . . . . . . . . . . . . . . . . . . 3 . . Times Spotted 653 | . 4 5 35 9 59 10 24 15 1 4 4 8 17 . 20 . 6 . 41 1 23 6 7 6 2 1 9 14 3 . 2 2 39 12 34 23 41 55 18 93 Peak Tracking Total 42 | . 4 3 9 3 6 4 3 7 1 3 4 4 4 . 8 . 4 . 38 1 6 3 3 5 2 1 5 4 3 . 2 2 9 5 8 5 7 9 4 42 Tactical Retreats 98 | . 1 . 5 . 1 . 1 4 . 1 . 1 3 . 6 . 3 . . 1 3 . 2 . . . 3 2 . . . 1 8 3 3 4 13 11 . 18 Traps | -11 -10 -10 -10 -9 -8 -8 -8 -7 -7 -7 -7 -6 -6 -6 -6 -6 -6 -6 -6 -5 -5 -5 -5 -5 -5 -5 -4 -4 -4 -4 -4 -3 -3 -3 -2 -2 -2 -1 -1 -1 ------- Run | Scr Mat Min Exi Min Mat Gar Mat Fac Low Low Dat Pro Fac Was Fac Low Low Zio Dee Pro Fac Was Fac Upp Upp War Pro Fac Upp Upp Zhi Pro Res Tes Res Qua Sec Acc Com Ac0 Traps Triggered 20 | . . . . . . 2 1 . . . . . 4 . 3 . 1 . . . 2 . . . . . . . . . . . 3 . . 1 . 1 2 . Indirectly . | . . . . . . . . . . . . . . . . . . . . . . . . . . . . . . . . . . . . . . . . . Trap Hack Attempts . | . . . . . . . . . . . . . . . . . . . . . . . . . . . . . . . . . . . . . . . . . Triggered . | . . . . . . . . . . . . . . . . . . . . . . . . . . . . . . . . . . . . . . . . . Disarmed 16 | . . . . . . . . . . . . . . . . . . . . . . . . . . . . . . . . . . . . 16 . . . . Reprogrammed . | . . . . . . . . . . . . . . . . . . . . . . . . . . . . . . . . . . . . . . . . . Reused . | . . . . . . . . . . . . . . . . . . . . . . . . . . . . . . . . . . . . . . . . . Traps Extracted . | . . . . . . . . . . . . . . . . . . . . . . . . . . . . . . . . . . . . . . . . . Installed . | . . . . . . . . . . . . . . . . . . . . . . . . . . . . . . . . . . . . . . . . . Triggered 7 | . . . . . . . . . . . . . . . . . 1 . . . . . . . . 4 . . . 1 . . . . . . . . 1 . Exploded 3 | . . . 3 . . . . . . . . . . . . . . . . . . . . . . . . . . . . . . . . . . . . . Machines | -11 -10 -10 -10 -9 -8 -8 -8 -7 -7 -7 -7 -6 -6 -6 -6 -6 -6 -6 -6 -5 -5 -5 -5 -5 -5 -5 -4 -4 -4 -4 -4 -3 -3 -3 -2 -2 -2 -1 -1 -1 ---------- Run | Scr Mat Min Exi Min Mat Gar Mat Fac Low Low Dat Pro Fac Was Fac Low Low Zio Dee Pro Fac Was Fac Upp Upp War Pro Fac Upp Upp Zhi Pro Res Tes Res Qua Sec Acc Com Ac0 Machines Disabled 65 | . . . 7 1 5 . 2 2 . . 1 . 1 . . . . . 2 . 1 . 1 . . . . 2 . . . . 1 6 4 5 10 3 2 9 Max in Single Turn 1 | . . . 1 1 1 . 1 1 . . 1 . 1 . . . . . 1 . 1 . . . . . . 1 . . . . 1 1 1 1 1 1 1 1 Garrison Access 28 | . . . . . . . . 2 . . . . 2 . 2 . . . . . 3 . 1 . . . . 2 . . . . 4 1 4 1 1 5 . . Machines Sabotaged . | . . . . . . . . . . . . . . . . . . . . . . . . . . . . . . . . . . . . . . . . . Garrisons Compromised . | . . . . . . . . . . . . . . . . . . . . . . . . . . . . . . . . . . . . . . . . . Overloaded Fab Kills . | . . . . . . . . . . . . . . . . . . . . . . . . . . . . . . . . . . . . . . . . . Fab Network Shutdowns 6 | . . . . . . . . 1 . . . . 1 . 1 . . . . . . . 1 . . . . . . . . . 1 1 . . . . . . Hacking | -11 -10 -10 -10 -9 -8 -8 -8 -7 -7 -7 -7 -6 -6 -6 -6 -6 -6 -6 -6 -5 -5 -5 -5 -5 -5 -5 -4 -4 -4 -4 -4 -3 -3 -3 -2 -2 -2 -1 -1 -1 --------- Run | Scr Mat Min Exi Min Mat Gar Mat Fac Low Low Dat Pro Fac Was Fac Low Low Zio Dee Pro Fac Was Fac Upp Upp War Pro Fac Upp Upp Zhi Pro Res Tes Res Qua Sec Acc Com Ac0 Machines Accessed 239 | . 3 1 2 . 10 . 5 12 . 1 4 . 19 . 20 1 . 1 . . 21 . 10 . 2 4 . 16 . . 4 . 14 17 5 17 21 23 5 1 Terminals 130 | . 3 1 . . 5 . 2 8 . . . . 10 . 9 . . . . . 8 . 6 . . . . 7 . . . . 4 11 4 13 18 17 4 . Fabricators 24 | . . . . . . . . 2 . . . . 2 . 4 . . . . . 5 . 2 . . . . 3 . . . . 2 2 1 . . 1 . . Repair Stations 17 | . . . . . 2 . 1 . . . . . 1 . 3 . . . . . 2 . 1 . . . . 2 . . . . 2 1 . 1 . . 1 . Recycling Units 7 | . . . . . 1 . 1 . . . . . 2 . 1 . . . . . 2 . . . . . . . . . . . . . . . . . . . Scanalyzers 16 | . . . . . 1 . 1 . . . . . 2 . 1 . . . . . 1 . . . . . . 2 . . . . 2 2 . 2 2 . . . Garrison Access 25 | . . . . . 1 . . 2 . . . . 2 . 2 . . . . . 3 . 1 . . . . 2 . . . . 4 1 . 1 1 5 . . Total Hacks 782 | . 8 5 2 . 28 . 11 31 . 1 25 . 61 . 66 1 . 2 . . 66 . 36 . 8 7 . 52 . . 17 . 47 86 20 54 60 60 12 16 Successful 635 | . 5 4 2 . 20 . 5 22 . 1 25 . 38 . 42 1 . 2 . . 48 . 30 . 8 7 . 45 . . 17 . 41 75 19 46 58 49 9 16 Failed 145 | . 3 1 . . 8 . 6 8 . . . . 23 . 24 . . . . . 18 . 6 . . . . 7 . . . . 6 10 1 8 2 11 3 . Catastrophic 11 | . . . . . . . . 2 . . . . 3 . . . . . . . 2 . . . . . . 1 . . . . . . 1 1 1 . . . Database Lockouts 2 | . . . . . . . . 1 . . . . . . . . . . . . . . . . . . . . . . . . . 1 . . . . . . Manual 366 | . 5 6 1 . 9 . 5 15 . . . . 34 . 28 . . 1 . . 36 . 23 . . 1 . 23 . . . . 13 39 11 41 36 34 5 . Terminals 438 | . 8 5 . . 18 . 3 21 . . . . 38 . 37 . . . . . 26 . 26 . . . . 26 . . . . 14 44 17 45 53 48 9 . Fabricators 98 | . . . . . . . . 7 . . . . 6 . 13 . . . . . 20 . 7 . . . . 11 . . . . 16 9 3 . . 6 . . Repair Stations 53 | . . . . . 6 . 3 . . . . . 4 . 8 . . . . . 8 . 2 . . . . 5 . . . . 8 4 . 2 . . 3 . Recycling Units 18 | . . . . . 1 . 4 . . . . . 3 . 3 . . . . . 7 . . . . . . . . . . . . . . . . . . . Scanalyzers 64 | . . . . . 2 . 1 . . . . . 7 . 1 . . . . . 1 . . . . . . 7 . . . . 5 28 . 6 6 . . . Garrison Access 32 | . . . . . 1 . . 3 . . . . 3 . 4 . . . . . 4 . 1 . . . . 3 . . . . 4 1 . 1 1 6 . . Terminal Hacks 284 | . 4 3 2 . 6 . . 8 . 1 25 . 10 . 12 1 . 2 . . 12 . 11 . 8 7 . 14 . . 17 . 8 23 12 22 32 25 3 16 Record 45 | . . . 1 . . . . . . . 11 . . . . . . . . . . . . . 7 5 . . . . 5 . . . . . . . . 16 Part Schematic 30 | . . 1 . . . . . 1 . . 7 . 1 . 1 . . 2 . . 3 . 2 . . . . . . . 4 . 3 1 1 . 1 2 . . Robot Schematic 5 | . . . . . . . . . . . 4 . . . . . . . . . . . . . . . . . . . . . . . 1 . . . . . Robot Analysis 10 | . 2 1 . . . . . . . . . . . . . . . . . . . . . . . . . 1 . . 4 . . . . . 1 . 1 . Prototype ID Bank 13 | . . . . . . . . 2 . . 3 . 1 . . . . . . . . . 1 . . . . . . . 4 . . . 2 . . . . . Open Door 16 | . . . . . . . . . . 1 . . . . . 1 . . . . . . . . 1 2 . . . . . . . 1 . 1 5 3 1 . Level Access Points 2 | . . . . . . . . . . . . . . . . . . . . . . . . . . . . . . . . . . . . . 1 1 . . Branch Access Points 8 | . . . . . . . . 1 . . . . 1 . 1 . . . . . 1 . 1 . . . . 1 . . . . 1 . 1 . . . . . Machine Index 8 | . . . . . . . . 1 . . . . . . . . . . . . . . 1 . . . . 1 . . . . . 1 1 1 1 1 . . Terminal Index 5 | . . . . . 1 . . 1 . . . . 1 . 1 . . . . . 1 . . . . . . . . . . . . . . . . . . . Fabricator Index 4 | . . . . . . . . 1 . . . . . . 1 . . . . . 1 . . . . . . . . . . . 1 . . . . . . . Repair Station Index 2 | . . . . . . . . . . . . . 1 . 1 . . . . . . . . . . . . . . . . . . . . . . . . . Recycling Unit Index 1 | . . . . . . . . . . . . . . . . . . . . . 1 . . . . . . . . . . . . . . . . . . . Scanalyzer Index 1 | . . . . . . . . . . . . . 1 . . . . . . . . . . . . . . . . . . . . . . . . . . . Garrison Index 1 | . . . . . . . . . . . . . . . . . . . . . 1 . . . . . . . . . . . . . . . . . . . Alert Level 1 | . . . . . . . . . . . . . . . . . . . . . . . . . . . . . . . . . . . . . 1 . . . Unreport Threat 24 | . . . . . 2 . . . . . . . . . . . . . . . . . 2 . . . . . . . . . 2 6 . 4 5 3 . . Locate Traps 24 | . 1 . . . 2 . . . . . . . 2 . 2 . . . . . 2 . 1 . . . . 3 . . . . 1 3 1 2 2 2 . . Disarm Traps 3 | . . . . . . . . . . . . . . . . . . . . . . . . . . . . . . . . . . . . 3 . . . . Recall Investigation 1 | . . . . . . . . . . . . . . . . . . . . . . . . . . . . . . . . . . 1 . . . . . . Recall Extermination 8 | . . . . . . . . . . . . . . . 1 . . . . . 1 . . . . . . 1 . . . . . 1 . 2 2 . . . Recall Reinforcements 10 | . . . . . . . . . . . . . . . . . . . . . . . . . . . . 1 . . . . . 5 . 3 1 . . . Recall Assault 1 | . . . . . . . . . . . . . . . . . . . . . . . . . . . . . . . . . . . . 1 . . . . Hauler Manifests 9 | . . . . . 1 . . 1 . . . . 1 . . . . . . . . . 1 . . . . 1 . . . . . 1 1 . 1 1 . . Registered Components 1 | . . . . . . . . . . . . . . . 1 . . . . . . . . . . . . . . . . . . . . . . . . . Registered Prototypes 3 | . . . . . . . . . . . . . 1 . . . . . . . . . . . . . . . . . . . . . . 1 . 1 . . Zone Layout 46 | . 1 1 . . . . . . . . . . . . 3 . . . . . 1 . 2 . . . . 5 . . . . . 3 4 4 11 11 . . EX-Prototype ID Bank 1 | . . . 1 . . . . . . . . . . . . . . . . . . . . . . . . . . . . . . . . . . . . . Disengage Seal 1 | . . . . . . . . . . . . . . . . . . . . . . . . . . . . . . . . . . . . . . . 1 . Fabricator Hacks 53 | . . . . . . . . 3 . . . . 2 . 8 . . . . . 10 . 4 . . . . 5 . . . . 9 6 2 . . 4 . . Load Schematic 22 | . . . . . . . . 1 . . . . 1 . 3 . . . . . 5 . 2 . . . . 3 . . . . 3 2 1 . . 1 . . Build 31 | . . . . . . . . 2 . . . . 1 . 5 . . . . . 5 . 2 . . . . 2 . . . . 6 4 1 . . 3 . . Repair Station Hacks 42 | . . . . . 6 . 2 . . . . . 4 . 6 . . . . . 5 . 2 . . . . 1 . . . . 8 4 . 2 . . 2 . Scan Component 22 | . . . . . 3 . 1 . . . . . 2 . 3 . . . . . 3 . 1 . . . . 1 . . . . 4 2 . 1 . . 1 . Repair 20 | . . . . . 3 . 1 . . . . . 2 . 3 . . . . . 2 . 1 . . . . . . . . . 4 2 . 1 . . 1 . Recycling Unit Hacks 1 | . . . . . . . 1 . . . . . . . . . . . . . . . . . . . . . . . . . . . . . . . . . Retrieve Components 1 | . . . . . . . 1 . . . . . . . . . . . . . . . . . . . . . . . . . . . . . . . . . Scanalyzer 59 | . . . . . 2 . . . . . . . 6 . . . . . . . . . . . . . . 7 . . . . 5 28 . 5 6 . . . Insert Component 29 | . . . . . 1 . . . . . . . 4 . . . . . . . . . . . . . . 2 . . . . 3 9 . 4 6 . . . Analyze 30 | . . . . . 1 . . . . . . . 2 . . . . . . . . . . . . . . 5 . . . . 2 19 . 1 . . . . Garrison Access Hacks 25 | . . . . . 1 . . 2 . . . . 2 . 2 . . . . . 3 . 1 . . . . 2 . . . . 4 1 . 1 1 5 . . Unlock Access 1 | . . . . . 1 . . . . . . . . . . . . . . . . . . . . . . . . . . . . . . . . . . . Seal Access 24 | . . . . . . . . 2 . . . . 2 . 2 . . . . . 3 . 1 . . . . 2 . . . . 4 1 . 1 1 5 . . Unauthorized Hacks 171 | . 1 1 . . 5 . 2 9 . . . . 14 . 14 . . . . . 18 . 12 . . . . 16 . . . . 7 13 5 16 19 15 4 . Terminals 123 | . 1 1 . . 4 . . 5 . . . . 9 . 8 . . . . . 7 . 9 . . . . 11 . . . . 2 10 4 15 19 14 4 . Track 76 | . 1 1 . . 4 . . 1 . . . . 4 . 5 . . . . . 3 . 4 . . . . 6 . . . . 1 5 3 10 16 9 3 . Assimilate 22 | . . . . . . . . 3 . . . . 1 . . . . . . . 4 . 2 . . . . 2 . . . . 1 3 . 1 2 3 . . Botnet 15 | . . . . . . . . 1 . . . . 4 . 2 . . . . . . . 2 . . . . 3 . . . . . 2 1 . . . . . Disrupt 8 | . . . . . . . . . . . . . . . 1 . . . . . . . . . . . . . . . . . . . . 4 . 2 1 . Operators 2 | . . . . . . . . . . . . . . . . . . . . . . . 1 . . . . . . . . . . . . . 1 . . . Fabricators 34 | . . . . . . . . 4 . . . . 3 . 3 . . . . . 6 . 3 . . . . 5 . . . . 5 3 1 . . 1 . . Report 3 | . . . . . . . . . . . . . . . 1 . . . . . 1 . . . . . . . . . . . 1 . . . . . . . Prioritize 12 | . . . . . . . . 2 . . . . 1 . . . . . . . 2 . 1 . . . . 2 . . . . 2 1 1 . . . . . Siphon 17 | . . . . . . . . 2 . . . . 1 . 2 . . . . . 3 . 1 . . . . 3 . . . . 2 2 . . . 1 . . Haulers 1 | . . . . . . . . . . . . . 1 . . . . . . . . . . . . . . . . . . . . . . . . . . . Download 1 | . . . . . . . . . . . . . . . . . . . . . . . 1 . . . . . . . . . . . . . . . . . Repair Stations . | . . . . . . . . . . . . . . . . . . . . . . . . . . . . . . . . . . . . . . . . . Recycling Units 11 | . . . . . 1 . 1 . . . . . 2 . 3 . . . . . 4 . . . . . . . . . . . . . . . . . . . Monitor 1 | . . . . . . . . . . . . . . . . . . . . . 1 . . . . . . . . . . . . . . . . . . . Reject 2 | . . . . . . . . . . . . . . . 1 . . . . . 1 . . . . . . . . . . . . . . . . . . . Recyclers 2 | . . . . . . . . . . . . . . . 1 . . . . . 1 . . . . . . . . . . . . . . . . . . . Mask 2 | . . . . . . . . . . . . . . . 1 . . . . . 1 . . . . . . . . . . . . . . . . . . . Tunnel 4 | . . . . . 1 . 1 . . . . . 2 . . . . . . . . . . . . . . . . . . . . . . . . . . . Scanalyzers 3 | . . . . . . . 1 . . . . . . . . . . . . . 1 . . . . . . . . . . . . . . 1 . . . . Researchers 1 | . . . . . . . . . . . . . . . . . . . . . . . . . . . . . . . . . . . . 1 . . . . Extract 2 | . . . . . . . 1 . . . . . . . . . . . . . 1 . . . . . . . . . . . . . . . . . . . Garrison Access . | . . . . . . . . . . . . . . . . . . . . . . . . . . . . . . . . . . . . . . . . . Data Cores Recovered 2 | . . . . . . . . 1 . . . . . . . . . . . . . . 1 . . . . . . . . . . . . . . . . . Used 1 | . . . . . . . . . . . . . . . . . . . . . . . 1 . . . . . . . . . . . . . . . . . Hacking Detections 147 | . 3 1 . . 7 . 3 8 . . . . 15 . 15 . . . . . 16 . 8 . . . . 9 . . . . 7 11 5 10 6 18 5 . Full Trace Events 2 | . . . . . . . . 1 . . . . . . . . . . . . . . . . . . . . . . . . . 1 . . . . . . Feedback Events . | . . . . . . . . . . . . . . . . . . . . . . . . . . . . . . . . . . . . . . . . . Feedback Blocked . | . . . . . . . . . . . . . . . . . . . . . . . . . . . . . . . . . . . . . . . . . Robot Schematics Acquired 5 | . . . . . . . . . . . 4 . . . . . . . . . . . . . . . . . . . . . . . 1 . . . . . Robots Built 3 | . . . . . . . . 3 . . . . . . . . . . . . . . . . . . . . . . . . . . . . . . . . Matter 189 | . . . . . . . . 189 . . . . . . . . . . . . . . . . . . . . . . . . . . . . . . . . Time 134 | . . . . . . . . 134 . . . . . . . . . . . . . . . . . . . . . . . . . . . . . . . . Total Robot Build Rating 12 | . . . . . . . . 12 . . . . . . . . . . . . . . . . . . . . . . . . . . . . . . . . Part Schematics Acquired 49 | . . 1 . . 1 . 1 1 . . 7 . 3 . 1 . . 2 . . 5 . 3 . . . . 2 . . 4 . 5 8 1 1 1 2 . . Parts Built 24 | . . . . . . . . 2 . . . . 1 . 3 . . . . . 3 . 2 . . . . 2 . . . . 4 3 1 . . 3 . . Matter 6394 | . . . . . . . . 109 . . . . 213 . 711 . . . . . 849 . 405 . . . . 405 . . . . 1248 1248 417 . . 789 . . Time 2211 | . . . . . . . . 73 . . . . 76 . 228 . . . . . 278 . 204 . . . . 204 . . . . 444 444 74 . . 186 . . Total Part Build Rating 162 | . . . . . . . . 6 . . . . 5 . 15 . . . . . 17 . 13 . . . . 13 . . . . 36 27 9 . . 21 . . Parts Repaired 20 | . . . . . 3 . 1 . . . . . 2 . 3 . . . . . 2 . 1 . . . . . . . . . 4 2 . 1 . . 1 . Time 1114 | . . . . . 211 . 26 . . . . . 120 . 121 . . . . . 47 . 34 . . . . . . . . . 296 188 . 45 . . 26 . Parts Recycled . | . . . . . . . . . . . . . . . . . . . . . . . . . . . . . . . . . . . . . . . . . Recycled Matter . | . . . . . . . . . . . . . . . . . . . . . . . . . . . . . . . . . . . . . . . . . Retrieved Matter . | . . . . . . . . . . . . . . . . . . . . . . . . . . . . . . . . . . . . . . . . . Retrieved Components 10 | . . . . . . . 10 . . . . . . . . . . . . . . . . . . . . . . . . . . . . . . . . . Parts Scanalyzed 15 | . . . . . 1 . . . . . . . 2 . . . . . . . . . . . . . . 2 . . . . 2 7 . 1 . . . . Part Schematics Acquired 15 | . . . . . 1 . . . . . . . 2 . . . . . . . . . . . . . . 2 . . . . 2 7 . 1 . . . . Parts Damaged 5 | . . . . . 1 . . . . . . . 1 . . . . . . . . . . . . . . 1 . . . . . 1 . 1 . . . . Bothacking | -11 -10 -10 -10 -9 -8 -8 -8 -7 -7 -7 -7 -6 -6 -6 -6 -6 -6 -6 -6 -5 -5 -5 -5 -5 -5 -5 -4 -4 -4 -4 -4 -3 -3 -3 -2 -2 -2 -1 -1 -1 ------------ Run | Scr Mat Min Exi Min Mat Gar Mat Fac Low Low Dat Pro Fac Was Fac Low Low Zio Dee Pro Fac Was Fac Upp Upp War Pro Fac Upp Upp Zhi Pro Res Tes Res Qua Sec Acc Com Ac0 Used RIF Installer . | . . . . . . . . . . . . . . . . . . . . . . . . . . . . . . . . . . . . . . . . . Robots Hacked 1 | . . . . . . . . . . . . . 1 . . . . . . . . . . . . . . . . . . . . . . . . . . . Non-combat 1 | . . . . . . . . . . . . . 1 . . . . . . . . . . . . . . . . . . . . . . . . . . . Combat . | . . . . . . . . . . . . . . . . . . . . . . . . . . . . . . . . . . . . . . . . . Robot Hacks Applied 1 | . . . . . . . . . . . . . 1 . . . . . . . . . . . . . . . . . . . . . . . . . . . find_chute 1 | . . . . . . . . . . . . . 1 . . . . . . . . . . . . . . . . . . . . . . . . . . . Relay Couplers Released 4 | . . . . . . . . . . . . . . . . . . . . . . . . . . . . . . . . . . . 1 . . 3 . . Machine Destruction 1 | . . . . . . . . . . . . . . . . . . . . . . . . . . . . . . . . . . . 1 . . . . . Programmers 3 | . . . . . . . . . . . . . . . . . . . . . . . . . . . . . . . . . . . . . . 3 . . Robots Rewired 1 | . . . . . . . . . . . . . 1 . . . . . . . . . . . . . . . . . . . . . . . . . . . Allies Hacked . | . . . . . . . . . . . . . . . . . . . . . . . . . . . . . . . . . . . . . . . . . Hacks Repelled . | . . . . . . . . . . . . . . . . . . . . . . . . . . . . . . . . . . . . . . . . . Allies | -11 -10 -10 -10 -9 -8 -8 -8 -7 -7 -7 -7 -6 -6 -6 -6 -6 -6 -6 -6 -5 -5 -5 -5 -5 -5 -5 -4 -4 -4 -4 -4 -3 -3 -3 -2 -2 -2 -1 -1 -1 -------- Run | Scr Mat Min Exi Min Mat Gar Mat Fac Low Low Dat Pro Fac Was Fac Low Low Zio Dee Pro Fac Was Fac Upp Upp War Pro Fac Upp Upp Zhi Pro Res Tes Res Qua Sec Acc Com Ac0 Total Allies 49 | . . 1 . 3 . . . 6 . . . . 2 . . . . 2 . . 4 19 1 . . . . 2 . . . . 1 2 . 1 2 3 . . Largest Group 19 | . . 1 . 3 . . . 4 3 . . . 1 . . . . 2 2 . 4 19 9 2 . . . 1 . . . . 1 3 . 1 2 2 . . Highest-Rated Group 681 | . . 31 . 40 . . . 100 70 . . . 32 . . . . 188 188 . 72 681 226 56 . . . 10 . . . . 44 98 . 44 20 88 . . Highest-Rated Ally 94 | . . 31 . 16 . . . 30 30 . . . 32 . . . . 94 94 . 26 50 33 32 . . . 10 . . . . 44 44 . 44 10 44 . . Total Orders 14 | . . . . . . . . . . . . . . . . . . . . . 2 . . . . . . 2 . . . . . 6 . 1 3 . . . STAY 9 | . . . . . . . . . . . . . . . . . . . . . 2 . . . . . . 1 . . . . . 3 . 1 2 . . . FOLLOW 5 | . . . . . . . . . . . . . . . . . . . . . . . . . . . . 1 . . . . . 3 . . 1 . . . Ally Attacks 267 | . . 3 . 12 . . . . 7 . 5 . 5 . . . . . 22 . . 149 62 2 . . . . . . . . . . . . . . . . Total Damage 5793 | . . 42 . 103 . . . . 225 . 263 . 226 . . . . . 605 . . 3315 1001 13 . . . . . . . . . . . . . . . . Kills 23 | . . 2 . 3 . . . . 1 . . . 2 . . . . . . . . 6 9 . . . . . . . . . . . . . . . . . Allies Corrupted . | . . . . . . . . . . . . . . . . . . . . . . . . . . . . . . . . . . . . . . . . . Allies Melted . | . . . . . . . . . . . . . . . . . . . . . . . . . . . . . . . . . . . . . . . . . Turrets Deployed 1 | . . . . . . . . . . . 1 . . . . . . . . . . . . . . . . . . . . . . . . . . . . . Intel | -11 -10 -10 -10 -9 -8 -8 -8 -7 -7 -7 -7 -6 -6 -6 -6 -6 -6 -6 -6 -5 -5 -5 -5 -5 -5 -5 -4 -4 -4 -4 -4 -3 -3 -3 -2 -2 -2 -1 -1 -1 ------- Run | Scr Mat Min Exi Min Mat Gar Mat Fac Low Low Dat Pro Fac Was Fac Low Low Zio Dee Pro Fac Was Fac Upp Upp War Pro Fac Upp Upp Zhi Pro Res Tes Res Qua Sec Acc Com Ac0 Robot Analysis Total 10 | . 2 1 . . . . . . . . . . . . . . . . . . . . . . . . . 1 . . 4 . . . . . 1 . 1 . Derelict Logs Recovered 14 | . . 2 . 2 . . . . . 1 . 1 . . . 1 1 . . . . . . 1 2 . 2 . . 1 . . . . . . . . . . Drone Launches . | . . . . . . . . . . . . . . . . . . . . . . . . . . . . . . . . . . . . . . . . . Drone Recoveries . | . . . . . . . . . . . . . . . . . . . . . . . . . . . . . . . . . . . . . . . . . Exploration | -11 -10 -10 -10 -9 -8 -8 -8 -7 -7 -7 -7 -6 -6 -6 -6 -6 -6 -6 -6 -5 -5 -5 -5 -5 -5 -5 -4 -4 -4 -4 -4 -3 -3 -3 -2 -2 -2 -1 -1 -1 ------------- Run | Scr Mat Min Exi Min Mat Gar Mat Fac Low Low Dat Pro Fac Was Fac Low Low Zio Dee Pro Fac Was Fac Upp Upp War Pro Fac Upp Upp Zhi Pro Res Tes Res Qua Sec Acc Com Ac0 Turns Passed 33951 | 39 473 1555 3079 654 2418 693 1286 777 108 185 72 253 1271 232 1355 148 159 486 1146 263 1275 129 611 152 701 486 310 706 68 154 194 224 1275 965 1052 1094 1481 2048 3201 1173 Spaces Moved 53798 | 21 229 778 1539 383 880 312 508 1580 305 461 149 607 2692 524 2497 430 403 1077 1778 289 2802 318 874 320 2035 860 427 1991 253 460 302 537 2465 2719 3674 2296 3509 4788 2372 3354 Core 5 | . . . . . . . . . . . . . . . . . . . 5 . . . . . . . . . . . . . . . . . . . . . Treads 4034 | . 210 778 1346 . 880 312 508 . . . . . . . . . . . . . . . . . . . . . . . . . . . . . . . . . Legs 616 | 21 19 . 193 383 . . . . . . . . . . . . . . . . . . . . . . . . . . . . . . . . . . . . Wheels . | . . . . . . . . . . . . . . . . . . . . . . . . . . . . . . . . . . . . . . . . . Hover . | . . . . . . . . . . . . . . . . . . . . . . . . . . . . . . . . . . . . . . . . . Flight 49143 | . . . . . . . . 1580 305 461 149 607 2692 524 2497 430 403 1077 1773 289 2802 318 874 320 2035 860 427 1991 253 460 302 537 2465 2719 3674 2296 3509 4788 2372 3354 Fastest Speed 16 | 120 120 180 150 150 181 198 200 29 29 30 30 30 29 29 29 32 34 34 18 18 25 25 25 25 25 25 25 17 17 17 17 17 16 16 16 16 16 16 16 16 Average Speed 37 | 120 168 180 176 150 201 201 200 29 29 30 30 30 29 29 33 32 34 34 34 36 25 25 33 31 29 25 27 17 17 17 24 17 18 17 17 17 18 16 29 19 Slowest Speed 225 | 120 180 180 220 150 225 203 225 29 30 30 30 30 102 32 98 34 34 34 102 37 50 25 50 50 50 137 50 17 17 112 34 112 129 111 32 127 127 111 127 127 Overloaded Moves . | . . . . . . . . . . . . . . . . . . . . . . . . . . . . . . . . . . . . . . . . . Propulsion Burnouts . | . . . . . . . . . . . . . . . . . . . . . . . . . . . . . . . . . . . . . . . . . Robots Hopped 190 | . . . . . . . . 2 . . 2 . 7 1 24 . . . . . 9 . 1 . 1 3 . 9 2 . . . 27 26 32 7 3 12 4 18 Cave-ins Triggered . | . . . . . . . . . . . . . . . . . . . . . . . . . . . . . . . . . . . . . . . . . Teleports 7 | . . . . . . . . . . . . . . . . . . . . . . . . . . . . . . . . . . . . . 3 . 1 3 Exploration Rate (%) 64 | 2 39 99 90 85 79 43 44 38 55 68 77 83 54 97 47 61 63 85 85 46 58 95 20 55 95 90 56 39 47 69 60 59 41 83 52 92 88 71 49 94 Regions Visited 40 Branch Regions 25 Pre-discovered Areas 13 | . . 1 1 1 1 . 1 . . 1 1 . 2 . . . . 1 . . . . . . . . . . . . 3 . . . . . . . . . Known Exits Taken 28 | . . . . . 1 . 1 1 1 1 1 1 . . 1 1 1 1 1 1 . . 1 1 1 1 . 1 1 1 1 1 1 1 1 1 1 1 . . Unknown Exits Taken 7 | 1 1 1 1 1 . . . . . . . . . . . . . . . . . . . . . . 1 . . . . . . . . . . . 1 . Scrap Searched 30 | . . 2 . 1 . . . . 2 5 . 2 . . . 1 2 3 . 2 . . . 1 3 . . . 2 3 . 1 . . . . . . . . Spaces Dug 724 | . . 12 . 14 7 . 2 20 1 7 . 15 54 . 58 . 4 3 23 5 51 . 21 6 12 9 59 54 5 9 . 19 52 50 36 17 29 63 4 3 Terrain Destroyed 1106 | . . 32 28 40 60 49 30 34 1 29 . 58 54 . 60 . 4 3 26 5 55 . 21 48 12 9 61 62 5 9 . 19 81 51 39 18 30 66 4 3 Melee 386 | . . 2 . 2 . . 2 20 1 7 . 2 43 . 46 . 3 3 5 4 27 . 7 2 3 1 . 20 3 5 . 2 37 27 28 15 21 42 3 3 Projectile 288 | . . . 19 . . . . . . . . . 11 . 14 . 1 . 18 1 28 . 14 4 9 8 12 42 2 4 . 17 12 24 11 3 9 24 1 . AOE 432 | . . 30 9 38 60 49 28 14 . 22 . 56 . . . . . . 3 . . . . 42 . . 49 . . . . . 32 . . . . . . . Terrain Rammed . | . . . . . . . . . . . . . . . . . . . . . . . . . . . . . . . . . . . . . . . . . Walls Destroyed . | . . . . . . . . . . . . . . . . . . . . . . . . . . . . . . . . . . . . . . . . . Machines Disabled . | . . . . . . . . . . . . . . . . . . . . . . . . . . . . . . . . . . . . . . . . . Actions | -11 -10 -10 -10 -9 -8 -8 -8 -7 -7 -7 -7 -6 -6 -6 -6 -6 -6 -6 -6 -5 -5 -5 -5 -5 -5 -5 -4 -4 -4 -4 -4 -3 -3 -3 -2 -2 -2 -1 -1 -1 --------- Run | Scr Mat Min Exi Min Mat Gar Mat Fac Low Low Dat Pro Fac Was Fac Low Low Zio Dee Pro Fac Was Fac Upp Upp War Pro Fac Upp Upp Zhi Pro Res Tes Res Qua Sec Acc Com Ac0 Total 64724 | 26 291 906 1788 431 1331 350 686 1862 316 485 164 664 3024 602 2828 435 413 1175 2225 436 3232 354 1153 349 2107 1112 595 2227 264 523 388 643 3133 3062 3940 2772 4163 5740 4793 3736 Wait 7188 | . 7 93 62 11 254 8 64 187 5 2 6 39 112 63 196 . . 71 233 138 276 16 234 12 46 219 140 130 2 51 14 75 497 152 174 237 358 685 2199 120 Move 53411 | 20 228 777 1538 382 879 309 507 1575 304 460 145 606 2678 521 2452 429 402 1076 1777 288 2784 317 871 319 2032 854 426 1973 248 459 301 536 2414 2668 3624 2281 3502 4764 2364 3321 Hop 156 | . . . . . . . . 2 . . 1 . 7 1 20 . . . . . 9 . 1 . 1 2 . 8 2 . . . 23 24 17 7 3 11 3 14 Pick Up 428 | . 19 5 38 2 27 . 17 16 . 1 2 . 31 4 7 . . 4 37 . 18 3 6 . 3 3 . 5 . . 11 . 15 36 6 24 27 13 22 26 Fast Attach 191 | 1 2 2 12 . 14 2 8 2 1 2 . . 5 2 13 . 1 1 13 1 8 . . . . 7 . 1 . . 13 . 3 12 6 13 27 4 12 3 Attach 235 | . . . 9 . 10 1 3 14 . 1 1 2 14 2 8 . 1 4 15 1 10 2 . . . . . 2 1 2 3 4 26 10 1 15 35 14 14 10 Detach 139 | . 1 . 8 . 4 . 1 6 . 1 . 2 6 . 8 . 1 1 16 1 10 . . . . . . 3 1 2 4 4 19 5 1 10 13 3 8 . Swap 412 | 1 8 2 5 4 16 8 8 4 2 3 1 7 19 1 14 6 1 1 14 1 12 2 10 7 3 4 14 8 3 . 6 5 18 23 12 14 31 67 25 22 Drop 526 | . 12 7 36 2 22 2 27 19 1 3 3 . 28 8 17 . 1 5 53 1 21 4 5 . 4 10 . 2 . . 15 . 13 41 16 40 41 19 25 23 Fire 734 | 4 13 3 65 11 102 16 47 5 . 2 . 6 13 . 14 . 1 . 35 1 33 7 14 5 9 12 13 46 2 4 . 17 18 36 37 25 59 45 12 2 Melee 1236 | . . 17 15 19 . . 2 32 3 10 5 2 76 . 79 . 5 12 32 4 51 3 12 6 9 1 2 49 5 5 21 2 79 55 46 106 67 115 94 195 Ram . | . . . . . . . . . . . . . . . . . . . . . . . . . . . . . . . . . . . . . . . . . Kick . | . . . . . . . . . . . . . . . . . . . . . . . . . . . . . . . . . . . . . . . . . Crush 6 | . 1 . . . 3 . 2 . . . . . . . . . . . . . . . . . . . . . . . . . . . . . . . . . Escape Stasis 53 | . . . . . . 4 . . . . . . 26 . . . . . . . . . . . . . . . . . . . 8 . . . . . 15 . Rewire 9 | . . . . . . . . . . . . . 9 . . . . . . . . . . . . . . . . . . . . . . . . . . . Trap . | . . . . . . . . . . . . . . . . . . . . . . . . . . . . . . . . . . . . . . . . . Miscellaneous . | . . . . . . . . . . . . . . . . . . . . . . . . . . . . . . . . . . . . . . . . . Route ------- -11/Scrapyard -10/Materials -10/Mines (discovered 3 exits: [*Mat x2] / *Exi) -10/Exiles -9/Mines (discovered 2 exits: *Mat x2) -8/Materials (discovered 4 exits: *Fac x3 / Gar) -8/Garrison (discovered 3 exits: *Mat x3) -8/Materials -7/Factory (discovered 5 exits: *Fac / Sto x2 / *Low x2) -7/Lower Caves -7/Lower Caves (discovered 2 exits: *Fac / *Dat) -7/Data Miner -6/Proximity Caves -6/Factory (discovered 6 exits: *Fac x2 / *Low x2 / Ext x2) -6/Waste -6/Factory (discovered 6 exits: *Fac x2 / *Low x2 / *Ext x2) -6/Lower Caves -6/Lower Caves (discovered 2 exits: *Fac / *Zio) -6/Zion (discovered 2 exits: *Dee / [*Pro]) -6/Deep Caves -5/Proximity Caves -5/Factory (discovered 3 exits: *Fac / *Upp x2) -5/Waste -5/Factory (discovered 2 exits: *Upp x2) -5/Upper Caves -5/Upper Caves (discovered 2 exits: *Fac / *War) -5/Warlord -4/Proximity Caves -4/Factory (discovered 5 exits: *Res x2 / *Upp x2 / Arm) -4/Upper Caves -4/Upper Caves (discovered 2 exits: *Res / *Zhi) -4/Zhirov -3/Proximity Caves -3/Research (discovered 2 exits: *Tes x2) -3/Testing -2/Research (discovered 3 exits: *Acc / *Qua x2) -2/Quarantine (discovered 2 exits: *Acc / *Sec) -2/Section 7 -1/Access (discovered 2 exits: Sur / *Com) -1/Command (discovered 2 exits: *Sur / *Ac0) -1/Access_0 0b11 Command History --------- Turn | Location | Event 15 | -11/Scrapyard | Discovered new exit (range 3) 40 | -11/Scrapyard | Entered Materials 387 | -10/Materials | Discovered new exit (range 12) 513 | -10/Materials | Entered Mines 537 | -10/Mines | Assembled infested the area 542 | -10/Mines | Assisted by a Guerilla fighting off Assembled 608 | -10/Mines | Build established: Hauler-Mutant 661 | -10/Mines | Discovered new exit (range 5) 690 | -10/Mines | Discovered new exit (range 8) 873 | -10/Mines | Received a Rocket Launcher from a helpful Derelict 963 | -10/Mines | A weapon hastily lodged in a ceiling crevice suddenly fell to the ground 1022 | -10/Mines | Joined a pair of Derelicts in attacking an 0b10 outpost 1236 | -10/Mines | Learned location of Storage (-7) 1400 | -10/Mines | Received a Mining Laser from a helpful Derelict 1513 | -10/Mines | Discovered new exit (range 5) 1976 | -10/Mines | Learned location of 2 exits from Materials 2060 | -10/Mines | Deemed a non-threat by the Exiles lab entrance 2068 | -10/Mines | Entered Exiles 2112 | -10/Exiles | Met 8R-AWN 2139 | -10/Exiles | Met EX-HEX 2209 | -10/Exiles | Met EX-DEC 2241 | -10/Exiles | Learned location of Zion (-6) 2272 | -10/Exiles | Met EX-BIN 2504 | -10/Exiles | Aligned with FarCom system 2506 | -10/Exiles | Given EX-Vault access code 2547 | -10/Exiles | Opened EX-Vault 2561 | -10/Exiles | Found Lightpack 2.0 2567 | -10/Exiles | Found YOLO Cannon 2572 | -10/Exiles | Found AWS/Gauss 2611 | -10/Exiles | Warned to stay clear of 0b10 Research branches 2749 | -10/Exiles | Discovered new exit (range 14) 3159 | -10/Exiles | Build established: Mutant 3796 | -10/Exiles | Attacked by the Exiles 3963 | -10/Exiles | Destroyed 8R-AWN 4439 | -10/Exiles | Destroyed EX-DEC 4461 | -10/Exiles | Destroyed EX-HEX 4533 | -10/Exiles | Destroyed EX-BIN 4937 | -10/Exiles | Found Deploy-a-Sentry 5074 | -10/Exiles | Build established: Hauler-Mutant 5147 | -10/Exiles | Stole three prototypes: Lightpack 2.0, YOLO Cannon, Deploy-a-Sentry 5147 | -10/Exiles | Entered Mines 5364 | -9/Mines | Discovered new exit (range 7) 5449 | -9/Mines | Assisted by bots powering up and referring to "LRC-V3" 5624 | -9/Mines | Excavation squad dispatched 5624 | -9/Mines | A large section of the Mines collapsed 5779 | -9/Mines | Discovered new exit (range 6) 5801 | -9/Mines | Entered Materials 5801 | -8/Materials | Evolved 4 slots: Propulsion x1, Utility x3 5802 | -8/Materials | Identified exit to Factory 6585 | -8/Materials | Discovered exit to Factory (range 15) 7043 | -8/Materials | Repaired Broken Cmb. Antigrav System 7844 | -8/Materials | Garrison activated, responded to threat 8028 | -8/Materials | Repaired Hvy. EM Shotgun 8090 | -8/Materials | Repaired Rnf. Fission Core 8201 | -8/Materials | First assault squad dispatched 8217 | -8/Materials | Identified exit to Garrison 8219 | -8/Materials | Entered Garrison 8285 | -8/Garrison | Triggered checkpoint 8292 | -8/Garrison | Triggered checkpoint 8363 | -8/Garrison | Destroyed 8 combat bots 8446 | -8/Garrison | Discovered new exit (range 14) 8472 | -8/Garrison | Attempted to access garrison exit controls, blocked by remote lockdown 8552 | -8/Garrison | Triggered checkpoint 8634 | -8/Garrison | Discovered new exit (range 15) 8662 | -8/Garrison | Attempted to access garrison exit controls, blocked by remote lockdown 8881 | -8/Garrison | Discovered new exit (range 11) 8912 | -8/Garrison | Entered Materials 9165 | -8/Materials | Repaired Lgt. Treads 10018 | -8/Materials | Discovered exit to Factory (range 10) 10198 | -8/Materials | Entered Factory 10198 | -7/Factory | Evolved 2 slots: Utility x2 10199 | -7/Factory | Identified exit to Storage 10265 | -7/Factory | Identified exit to Lower Caves 10499 | -7/Factory | Build established: Hauler-Sprinter 10649 | -7/Factory | Discovered new exit (range 13) 10722 | -7/Factory | Central database locked down 10783 | -7/Factory | Fabricated Imp. Utility Shielding? 10867 | -7/Factory | Fabricated L-41 Fighter? 10907 | -7/Factory | Local fabrication network quarantined 10914 | -7/Factory | Build established: Hacker-Sprinter 10975 | -7/Factory | Entered Lower Caves 10975 | -7/Lower Caves | Accompanied by 3 allies 11071 | -7/Lower Caves | Discovered new exit (range 7) 11080 | -7/Lower Caves | Identified exit to Lower Caves 11083 | -7/Lower Caves | Entered another Lower Caves area 11116 | -7/Lower Caves | Discovered new exit (range 6) 11117 | -7/Lower Caves | Identified exit to Factory 11149 | -7/Lower Caves | Spotted B-75 Beast 11246 | -7/Lower Caves | Discovered new exit (range 15) 11268 | -7/Lower Caves | Identified exit to Data Miner 11268 | -7/Lower Caves | Entered Data Miner 11268 | -7/Data Miner | Discovered new exit (range 6) 11274 | -7/Data Miner | Met Data Miner 11285 | -7/Data Miner | Received God Mode back door access code from Data Miner 11287 | -7/Data Miner | Learned location of Section 7 (-2) 11287 | -7/Data Miner | Acquired the access code to Warlord's prototype stash 11304 | -7/Data Miner | DAS Turret deployed 11315 | -7/Data Miner | Data Conduit disabled 11340 | -7/Data Miner | Identified exit to Proximity Caves 11340 | -7/Data Miner | Entered Proximity Caves 11449 | -6/Proximity Caves | Spotted B-75 Beast 11545 | -6/Proximity Caves | Spotted L5-L3D(f) 11548 | -6/Proximity Caves | Encountered a Master Thief 11572 | -6/Proximity Caves | Learned 4 Factory zone layouts 11590 | -6/Proximity Caves | Discovered exit to Factory (range 11) 11593 | -6/Proximity Caves | Entered Factory 11593 | -6/Factory | Evolved 2 slots: Utility x2 11596 | -6/Factory | Identified exit to Lower Caves 11596 | -6/Factory | Identified exit to Extension 11691 | -6/Factory | Found Prototype Processor 11889 | -6/Factory | Fabricated Exp. Sensor Array? 11984 | -6/Factory | Local fabrication network quarantined 12247 | -6/Factory | Discovered new exit (range 10) 12250 | -6/Factory | Identified exit to Factory 12268 | -6/Factory | Identified Exp. Terrain Scan Processor 12348 | -6/Factory | Found Prototype Processor 12447 | -6/Factory | Repaired Broken Imp. VTOL Module? 12506 | -6/Factory | Identified Exp. Signal Interpreter 12512 | -6/Factory | Discovered exit to Factory (range 15) 12519 | -6/Factory | Repaired Lyr. Light Armor Plating? 12864 | -6/Factory | Manually triggered Chute Trap 12864 | -6/Factory | Sucked down chute 12864 | -6/Factory | Entered Waste 12864 | -6/Waste | The area was eerily silent 12926 | -6/Waste | Discovered new exit (range 11) 12967 | -6/Waste | Found Damper Plating 13043 | -6/Waste | Identified exit to Factory 13065 | -6/Waste | Found Fusion Bomb Launcher 13096 | -6/Waste | Entered Factory 13208 | -6/Factory | Discovered exit to Factory (range 7) 13487 | -6/Factory | Fabricated Biomechanical Wings? 13572 | -6/Factory | Fabricated Biomechanical Wings (x1) 13645 | -6/Factory | Repaired Fusion Bomb Launcher? 13805 | -6/Factory | Repaired Broken Mic. Fission Core 13845 | -6/Factory | Fabricated Biomechanical Wings? 13847 | -6/Factory | Build established: Hacker-Mutant 13913 | -6/Factory | Discovered exit to Factory (range 16) 14021 | -6/Factory | Local fabrication network quarantined 14197 | -6/Factory | Repaired Greatsword 14451 | -6/Factory | Entered Lower Caves 14562 | -6/Lower Caves | Learned Factory stockpile data 14590 | -6/Lower Caves | Discovered new exit (range 12) 14593 | -6/Lower Caves | Identified exit to Lower Caves 14599 | -6/Lower Caves | Entered another Lower Caves area 14613 | -6/Lower Caves | Discovered exit to Factory (range 8) 14650 | -6/Lower Caves | Learned Factory emergency access door positions 14716 | -6/Lower Caves | Discovered new exit (range 14) 14720 | -6/Lower Caves | Identified exit to Zion 14725 | -6/Lower Caves | Spotted QM-OSU(f) 14726 | -6/Lower Caves | Encountered a Master Thief 14726 | -6/Lower Caves | Spotted SI-IOR(f) 14727 | -6/Lower Caves | Encountered a Master Thief 14758 | -6/Lower Caves | Entered Zion 14789 | -6/Zion | Given A8's code to call for help 14793 | -6/Zion | Discovered new exit (range 13) 14810 | -6/Zion | System corruption cleaned by Quarantine Array 14822 | -6/Zion | Given the Hacking Drone Bay 14889 | -6/Zion | Learned location of Quarantine (-2) 14914 | -6/Zion | Found CR-A16's Pointy Stick 15068 | -6/Zion | Discovered new exit (range 5) 15068 | -6/Zion | Saw the warning signs outside the Deep Caves entrance 15082 | -6/Zion | Enhanced Grunt warped into view, answering call for help 15084 | -6/Zion | Enhanced Grunt warped into view, answering call for help 15137 | -6/Zion | Identified exit to Deep Caves 15244 | -6/Zion | Entered Deep Caves 15244 | -6/Deep Caves | Accompanied by 2 allies 15352 | -6/Deep Caves | Attacked by Z-Imprinter 15385 | -6/Deep Caves | Core integrity fell below 50% 15399 | -6/Deep Caves | Destroyed Z-Imprinter 15403 | -6/Deep Caves | Found Prototype Device 15403 | -6/Deep Caves | Identified Zio. Metafield Generator 15411 | -6/Deep Caves | Found Prototype Protection 15411 | -6/Deep Caves | Identified Zio. Weapon Casing 15489 | -6/Deep Caves | Z-Facility disabled 15574 | -6/Deep Caves | Found Prototype Protection 15574 | -6/Deep Caves | Identified Zio. Heavy Carapace 15608 | -6/Deep Caves | Found Zio. Heavy Carapace 15610 | -6/Deep Caves | Found Zio. Heavy Carapace 15642 | -6/Deep Caves | Build established: Hauler-Mutant 15709 | -6/Deep Caves | Discovered new exit (range 6) 15771 | -6/Deep Caves | Found Zio. Weapon Casing 15811 | -6/Deep Caves | Spotted as-92789 15841 | -6/Deep Caves | Destroyed as-92789 15866 | -6/Deep Caves | Exposed GOLEM chamber 15868 | -6/Deep Caves | Lost 4 parts (3u1w) 15888 | -6/Deep Caves | Found GOLEM Unit 15893 | -6/Deep Caves | Found GOLEM Unit 16113 | -6/Deep Caves | Found Surveybot 24 Scanner 16114 | -6/Deep Caves | Found Surveybot 24 Chip 16181 | -6/Deep Caves | Found Zio. Weapon Casing 16242 | -6/Deep Caves | Identified exit to Proximity Caves 16368 | -6/Deep Caves | Spotted as-05269 16378 | -6/Deep Caves | Triggered Deep Caves wall 16378 | -6/Deep Caves | Spotted AS-15739 16378 | -6/Deep Caves | Found Flying Fortress v7 16390 | -6/Deep Caves | Entered Proximity Caves 16392 | -5/Proximity Caves | Attracted the attention of an 0b10 checkpoint 16648 | -5/Proximity Caves | Discovered exit to Factory (range 13) 16653 | -5/Proximity Caves | Entered Factory 16653 | -5/Factory | Evolved 2 slots: Propulsion x1, Utility x1 16694 | -5/Factory | Identified exit to Upper Caves 16782 | -5/Factory | Repaired Greatsword? 16813 | -5/Factory | Repaired Fusion Compressor? 17022 | -5/Factory | Build established: Hacker-Sprinter 17212 | -5/Factory | Fabricated Exp. Cesium-ion Thruster (x1) 17256 | -5/Factory | Fabricated Exp. Cesium-ion Thruster? 17404 | -5/Factory | Discovered new exit (range 16) 17809 | -5/Factory | Fabricated Exp. Propulsion Shielding? 17928 | -5/Factory | Manually triggered Chute Trap 17928 | -5/Factory | Sucked down chute 17928 | -5/Factory | Entered Waste 17929 | -5/Waste | Met a frightened Derelict 17931 | -5/Waste | Spotted C-40 Crusher 17932 | -5/Waste | Spotted C-40 Crusher 17944 | -5/Waste | Spotted C-40 Crusher 17945 | -5/Waste | Spotted C-40 Crusher 17948 | -5/Waste | Spotted C-40 Crusher 17956 | -5/Waste | Warlord forces began an assault 17957 | -5/Waste | Allies destroyed C-40 Crusher 17988 | -5/Waste | Allies destroyed C-40 Crusher 17999 | -5/Waste | Allies destroyed C-40 Crusher 18002 | -5/Waste | Allies destroyed C-40 Crusher 18002 | -5/Waste | Spotted C-40 Crusher 18008 | -5/Waste | Allies destroyed C-40 Crusher 18018 | -5/Waste | Discovered new exit (range 15) 18036 | -5/Waste | Found Damper Plating 18045 | -5/Waste | Identified exit to Factory 18057 | -5/Waste | Entered Factory 18057 | -5/Factory | Accompanied by 8 allies 18232 | -5/Factory | Fabricated Adv. Powered Armor? 18336 | -5/Factory | Fabricated Exp. Propulsion Shielding? 18440 | -5/Factory | Repaired Broken Adv. Cloaking Device 18450 | -5/Factory | Local fabrication network quarantined 18569 | -5/Factory | Found Scatter Rocket Array 18668 | -5/Factory | Entered Upper Caves 18668 | -5/Upper Caves | Accompanied by 3 allies 18689 | -5/Upper Caves | Spotted B-75 Beast 18709 | -5/Upper Caves | Revealed the true nature of CR-A16's Pointy Stick 18714 | -5/Upper Caves | Destroyed B-75 Beast 18776 | -5/Upper Caves | Learned Factory terminal intel 18812 | -5/Upper Caves | Discovered new exit (range 15) 18815 | -5/Upper Caves | Identified exit to Upper Caves 18820 | -5/Upper Caves | Entered another Upper Caves area 18839 | -5/Upper Caves | Learned Factory emergency access door positions 18839 | -5/Upper Caves | Learned Factory stockpile data 18855 | -5/Upper Caves | Learned location of 1 exit from Factory 18855 | -5/Upper Caves | Learned Armory security intel 18899 | -5/Upper Caves | Discovered new exit (range 10) 18902 | -5/Upper Caves | Identified exit to Warlord 19134 | -5/Upper Caves | Discovered new exit (range 13) 19420 | -5/Upper Caves | Spotted R2-RQY(f) 19463 | -5/Upper Caves | Encountered a Master Thief 19477 | -5/Upper Caves | Spotted M3-Z68(f) 19521 | -5/Upper Caves | Entered Warlord 19540 | -5/Warlord | Found Prototype Device 19540 | -5/Warlord | Identified Minesniffer Drone Bay 19598 | -5/Warlord | Learned 4 Armory zone layouts 19598 | -5/Warlord | Learned 4 Testing zone layouts 19598 | -5/Warlord | Learned Armory security intel 19598 | -5/Warlord | Learned Armory terminal intel 19598 | -5/Warlord | Learned Research garrison access intel 19611 | -5/Warlord | Received a Watcher feed algorithm from an ecstatic Tinkerer 19650 | -5/Warlord | Met Warlord 19653 | -5/Warlord | Opened Warlord's prototype stash 19656 | -5/Warlord | Found Prototype Device 19656 | -5/Warlord | Identified Exp. Focal Shield 19670 | -5/Warlord | Found Prototype Reactor 19672 | -5/Warlord | Found Prototype Processor 19675 | -5/Warlord | Warlord's base attacked by MAIN.C 19996 | -5/Warlord | Warlord forces counterattacked 20003 | -5/Warlord | Discovered new exit (range 15) 20007 | -5/Warlord | Identified exit to Proximity Caves 20007 | -5/Warlord | Entered Proximity Caves 20013 | -4/Proximity Caves | Learned Research stockpile data 20257 | -4/Proximity Caves | Learned Research terminal intel 20265 | -4/Proximity Caves | Spotted B-86 Titan 20276 | -4/Proximity Caves | Destroyed B-86 Titan 20315 | -4/Proximity Caves | Discovered new exit (range 4) 20317 | -4/Proximity Caves | Entered Factory 20317 | -4/Factory | Evolved 2 slots: Power x1, Propulsion x1 20318 | -4/Factory | Identified exit to Research 20318 | -4/Factory | Identified exit to Armory 20320 | -4/Factory | Identified Vortex Chain Reactor 20322 | -4/Factory | Loaded intel: 20 terminal locations 20342 | -4/Factory | Spotted B-86 Titan 20343 | -4/Factory | Destroyed B-86 Titan 20348 | -4/Factory | Identified exit to Upper Caves 20438 | -4/Factory | Identified Exp. Target Analyzer 20757 | -4/Factory | Fabricated Adv. Powered Armor? 20859 | -4/Factory | Fabricated Exp. Propulsion Shielding? 20947 | -4/Factory | Found Quantum Capacitor 21023 | -4/Factory | Entered Upper Caves 21071 | -4/Upper Caves | Attracted the attention of an 0b10 checkpoint 21084 | -4/Upper Caves | Spotted B-86 Titan 21087 | -4/Upper Caves | Spotted 2H-M12(f) 21088 | -4/Upper Caves | Spotted 1U-LSD(f) 21089 | -4/Upper Caves | Encountered a Master Thief 21089 | -4/Upper Caves | Discovered new exit (range 15) 21091 | -4/Upper Caves | Identified exit to Upper Caves 21091 | -4/Upper Caves | Entered another Upper Caves area 21136 | -4/Upper Caves | Discovered exit to Research (range 16) 21216 | -4/Upper Caves | Discovered new exit (range 15) 21219 | -4/Upper Caves | Identified exit to Zhirov 21224 | -4/Upper Caves | Learned Research stockpile data 21245 | -4/Upper Caves | Entered Zhirov 21245 | -4/Zhirov | Discovered new exit (range 3) 21249 | -4/Zhirov | Met Zhirov 21252 | -4/Zhirov | Learned location of Testing (-3) 21253 | -4/Zhirov | Zhirov requested help retrieving the SGEMP Prototype 21256 | -4/Zhirov | Found Alien Artifact 21256 | -4/Zhirov | Identified Integrated Dissipator 21256 | -4/Zhirov | Installed Integrated Dissipator, increased core heat dissipation (+20) 21285 | -4/Zhirov | Found Alien Artifact 21322 | -4/Zhirov | Destroyed Zhirov 21322 | -4/Zhirov | Attacked by Zhirov 21342 | -4/Zhirov | Destroyed Perun 21379 | -4/Zhirov | Destroyed Svarog 21383 | -4/Zhirov | Found Prototype Hackware 21385 | -4/Zhirov | Found Prototype Hackware 21387 | -4/Zhirov | Found Prototype Hackware 21388 | -4/Zhirov | Found Exp. Terrain Scanner 21392 | -4/Zhirov | Found Adv. Powered Armor 21433 | -4/Zhirov | Found Alien Artifact 21438 | -4/Zhirov | Identified exit to Proximity Caves 21439 | -4/Zhirov | Entered Proximity Caves 21645 | -3/Proximity Caves | Discovered exit to Research (range 12) 21663 | -3/Proximity Caves | Entered Research 21663 | -3/Research | Evolved 2 slots: Utility x2 21663 | -3/Research | Identified Deep Network Scanner (x2) 21665 | -3/Research | Loaded intel: 17 terminal locations 21666 | -3/Research | Loaded intel: 4 garrison access locations 21666 | -3/Research | Identified Quantum Router 21670 | -3/Research | Identified Transdimensional Reconstructor (x2) 21733 | -3/Research | Spotted B-86 Titan 21750 | -3/Research | Destroyed B-86 Titan 21755 | -3/Research | Identified exit to Testing 21918 | -3/Research | Fabricated Exp. Q-thruster? 21979 | -3/Research | Repaired Exp. Propulsion Shielding? 22027 | -3/Research | Repaired Adv. Powered Armor? 22173 | -3/Research | Fabricated Exp. Q-thruster? 22210 | -3/Research | Build established: Wizard-Sprinter 22227 | -3/Research | Repaired Exp. Utility Shielding? 22337 | -3/Research | Fabricated Vortex Chain Reactor? 22342 | -3/Research | Repaired Adv. Powered Armor? 22770 | -3/Research | Local fabrication network quarantined 22784 | -3/Research | Fabricated Vortex Chain Reactor? 22938 | -3/Research | Entered Testing 22938 | -3/Testing | Accompanied by 1 ally 22939 | -3/Testing | Identified exit to Research 22962 | -3/Testing | Found Prototype Energy Cannon 22962 | -3/Testing | Identified Cld. Nova Cannon 22982 | -3/Testing | Found Prototype Protection 22982 | -3/Testing | Identified SHELL Armor 22998 | -3/Testing | Central database locked down 23043 | -3/Testing | Found Prototype Energy Cannon 23043 | -3/Testing | Identified Disintegrator 23083 | -3/Testing | Found Prototype Processor 23095 | -3/Testing | Identified Spectral Analyzer 23111 | -3/Testing | Repaired Exp. Propulsion Shielding? 23119 | -3/Testing | Found Prototype Energy Cannon 23119 | -3/Testing | Identified Potential Cannon 23223 | -3/Testing | Found Prototype Device 23363 | -3/Testing | Identified Exp. Thermal Shield 23415 | -3/Testing | Fabricated Dimensional Manipulator? 23484 | -3/Testing | Repaired Cld. Antimatter Reactor? 23562 | -3/Testing | Found Prototype Launcher 23566 | -3/Testing | Identified Tesla Bomb Launcher 23571 | -3/Testing | Found Prototype Launcher 23575 | -3/Testing | Identified Tactical Quantum Warhead 23617 | -3/Testing | Fabricated Dimensional Manipulator? 23668 | -3/Testing | Found Prototype Hackware 23668 | -3/Testing | Identified System Mapper 23699 | -3/Testing | Fabricated Exp. Armor Integrity Analyzer? 23847 | -3/Testing | Local fabrication network quarantined 23903 | -3/Testing | Entered Research 23903 | -2/Research | Warlord forces began assault on 0b10 23903 | -2/Research | Evolved 2 slots: Utility x2 23919 | -2/Research | Identified exit to Quarantine 23949 | -2/Research | Spotted B-90 Cyclops 23949 | -2/Research | Destroyed B-90 Cyclops 23997 | -2/Research | Fabricated Femtoactuators? 24013 | -2/Research | Research machine network offline 24065 | -2/Research | Spotted B-90 Cyclops 24065 | -2/Research | Destroyed B-90 Cyclops 24091 | -2/Research | Found Prototype Slashing Weapon 24124 | -2/Research | Met up with Warlord 24441 | -2/Research | Discovered new exit (range 15) 24443 | -2/Research | Identified exit to Access 24516 | -2/Research | Borebot progress halted 24517 | -2/Research | Borebot progress halted 24672 | -2/Research | Spotted Striker 24678 | -2/Research | Destroyed Striker 24758 | -2/Research | Spotted Executioner 24903 | -2/Research | Warlord invited to help at Command 24916 | -2/Research | Spotted Executioner 24916 | -2/Research | Spotted Striker 24955 | -2/Research | Entered Quarantine 24957 | -2/Quarantine | Identified Nanosword 24994 | -2/Quarantine | Found Alien Energy Cannon 24994 | -2/Quarantine | Identified Core Cannon 25002 | -2/Quarantine | Discovered exit to Access (range 13) 25045 | -2/Quarantine | Found Adv. Force Booster 25054 | -2/Quarantine | Repaired Broken Nanosword? 25173 | -2/Quarantine | Found Alien Artifact 25184 | -2/Quarantine | Found Alien Slashing Weapon 25191 | -2/Quarantine | Found Alien Impact Weapon 25249 | -2/Quarantine | Identified Core Reset Matrix 25250 | -2/Quarantine | Identified Sigix Broadsword 25250 | -2/Quarantine | Identified Core Stripper 25402 | -2/Quarantine | Met incapacitated Sigix Warrior 25402 | -2/Quarantine | Lockdown squad dispatched 25559 | -2/Quarantine | Spotted Lightning 25559 | -2/Quarantine | Spotted Lightning 25576 | -2/Quarantine | Spotted Lightning 25635 | -2/Quarantine | Found Prototype Energy Cannon 25635 | -2/Quarantine | Identified EMDS 25650 | -2/Quarantine | Found Prototype Device 25650 | -2/Quarantine | Identified Exp. Phase Shifter 25657 | -2/Quarantine | Found EMDS 25685 | -2/Quarantine | Found Prototype Device 25685 | -2/Quarantine | Identified EM Dispersion Field 25705 | -2/Quarantine | First assault squad dispatched 25800 | -2/Quarantine | Destroyed Lightning 25818 | -2/Quarantine | Destroyed Lightning 25876 | -2/Quarantine | Found EM Dispersion Field 25905 | -2/Quarantine | Destroyed Lightning 25937 | -2/Quarantine | Found Alien Artifact 26020 | -2/Quarantine | Spotted Fortress 26020 | -2/Quarantine | Destroyed Fortress 26025 | -2/Quarantine | Found Prototype Device 26025 | -2/Quarantine | Identified Thermal Barrier 26027 | -2/Quarantine | Found Prototype Device 26027 | -2/Quarantine | Identified Exp. Force Field 26048 | -2/Quarantine | Discovered new exit (range 6) 26049 | -2/Quarantine | Identified exit to Section 7 26049 | -2/Quarantine | Entered Section 7 26112 | -2/Section 7 | Spotted S7 Guard 26125 | -2/Section 7 | Destroyed S7 Guard 26238 | -2/Section 7 | Identified Subatomic Replicator 26291 | -2/Section 7 | Found Alien Artifact 26301 | -2/Section 7 | Identified Integrated Singularity Reactor 26301 | -2/Section 7 | Used Subatomic Replicator to replicate Integrated Singularity Reactor 26303 | -2/Section 7 | Installed Integrated Singularity Reactor, increased core energy generation (+20) 26304 | -2/Section 7 | Installed Integrated Singularity Reactor, increased core energy generation (+20) 26329 | -2/Section 7 | Found Alien Artifact 26340 | -2/Section 7 | Found Alien Artifact 26348 | -2/Section 7 | Identified Integrity Redistributor (x2) 26445 | -2/Section 7 | Spotted S7 Guard 26487 | -2/Section 7 | Destroyed S7 Guard 26504 | -2/Section 7 | Found Alien Artifact 26523 | -2/Section 7 | Identified Integrated Heat Negator 26546 | -2/Section 7 | Installed Integrated Heat Negator, increased core heat dissipation (+40) 26564 | -2/Section 7 | Spotted S7 Guard 26612 | -2/Section 7 | Destroyed S7 Guard 26629 | -2/Section 7 | Found Alien Artifact 26629 | -2/Section 7 | Identified Core Membrane 26629 | -2/Section 7 | Installed Core Membrane, gained immunity to corruption 26824 | -2/Section 7 | Spotted S7 Guard 26842 | -2/Section 7 | Found Alien Artifact 26854 | -2/Section 7 | Spotted B-99 Colossus 26863 | -2/Section 7 | Found Integrated Dissipator 26863 | -2/Section 7 | Installed Integrated Dissipator, increased core heat dissipation (+20) 26865 | -2/Section 7 | Found Integrated Dissipator 26865 | -2/Section 7 | Installed Integrated Dissipator, increased core heat dissipation (+20) 26866 | -2/Section 7 | Found Integrated Dissipator 26866 | -2/Section 7 | Installed Integrated Dissipator, increased core heat dissipation (+20) 26876 | -2/Section 7 | Found Alien Artifact 26876 | -2/Section 7 | Identified LRC Energy Well 26876 | -2/Section 7 | Installed LRC Energy Well, increased energy storage capacity (+250) 26878 | -2/Section 7 | Found Alien Artifact 26878 | -2/Section 7 | Identified LRC Armor 26878 | -2/Section 7 | Installed LRC Armor, increased core integrity (+250) 26977 | -2/Section 7 | Destroyed B-99 Colossus 27021 | -2/Section 7 | Found Transdimensional Reconstructor 27022 | -2/Section 7 | Found Transdimensional Reconstructor 27037 | -2/Section 7 | Warped through subspace 27044 | -2/Section 7 | Found Transdimensional Reconstructor 27066 | -2/Section 7 | Warped through subspace 27066 | -2/Section 7 | Spotted Executioner 27066 | -2/Section 7 | Spotted Executioner 27067 | -2/Section 7 | Warped through subspace 27072 | -2/Section 7 | Found Transdimensional Reconstructor 27179 | -2/Section 7 | Spotted Alpha 7 27179 | -2/Section 7 | Spotted Alpha 7 27371 | -2/Section 7 | Spotted B-90 Cyclops 27371 | -2/Section 7 | Destroyed B-90 Cyclops 27406 | -2/Section 7 | Spotted B-90 Cyclops 27406 | -2/Section 7 | Destroyed B-90 Cyclops 27472 | -2/Section 7 | Used Integrity Redistributor, redistributed integrity from core (-119) 27518 | -2/Section 7 | Identified Core Regenerator 27530 | -2/Section 7 | Entered Access 27530 | -1/Access | Accompanied by 1 ally 27530 | -1/Access | Evolved 2 slots: Utility x1, Weapon x1 27727 | -1/Access | Identified exit to Surface 28743 | -1/Access | Fabricated Exp. Melee Analysis Suite? 28839 | -1/Access | Spotted B-99 Colossus 28839 | -1/Access | Spotted B-99 Colossus 28840 | -1/Access | Destroyed B-99 Colossus 28844 | -1/Access | Destroyed B-99 Colossus 29021 | -1/Access | Fabricated Exp. Melee Analysis Suite (x1) 29084 | -1/Access | Fabricated Exp. Melee Analysis Suite (x1) 29092 | -1/Access | Spotted B-99 Colossus 29095 | -1/Access | Destroyed B-99 Colossus 29154 | -1/Access | Discovered new exit (range 12) 29181 | -1/Access | Spotted B-99 Colossus 29182 | -1/Access | Destroyed B-99 Colossus 29212 | -1/Access | Spotted B-99 Colossus 29213 | -1/Access | Destroyed B-99 Colossus 29243 | -1/Access | Spotted B-99 Colossus 29249 | -1/Access | Destroyed B-99 Colossus 29342 | -1/Access | Spotted B-99 Colossus 29421 | -1/Access | Destroyed B-99 Colossus 29568 | -1/Access | Identified exit to Command 29578 | -1/Access | Entered Command 29667 | -1/Command | Repaired Exp. Propulsion Shielding 29725 | -1/Command | Spotted M Guard 29725 | -1/Command | Spotted M Guard 29725 | -1/Command | Spotted Combat Programmer 29756 | -1/Command | Spotted Combat Programmer 29758 | -1/Command | Destroyed Combat Programmer 29761 | -1/Command | Destroyed Combat Programmer 29806 | -1/Command | Destroyed M Guard 29813 | -1/Command | Destroyed M Guard 29813 | -1/Command | All MAIN.C guards destroyed 29815 | -1/Command | Found Prototype Device 29815 | -1/Command | Identified AEGIS Remote Shield 29818 | -1/Command | Found AEGIS Remote Shield 29822 | -1/Command | Found Prototype Reactor 29822 | -1/Command | Identified Zero-point Reactor 29824 | -1/Command | Found Zero-point Reactor 29832 | -1/Command | Found Prototype Device 29832 | -1/Command | Identified Thermal Barrier 29891 | -1/Command | Found Exp. Target Analyzer 29930 | -1/Command | Disengaged cave seal 29930 | -1/Command | Derelicts emerged from the dark tunnel 29930 | -1/Command | Welcomed Warlord to Command 30084 | -1/Command | Warlord commented on Warlord statues 30176 | -1/Command | Met MAIN.C 30179 | -1/Command | Warlord shut down involuntarily 30181 | -1/Command | 0b10 Conduit disabled 30201 | -1/Command | MAIN.C activated Command garrisons 30231 | -1/Command | Destroyed MAIN.C 30236 | -1/Command | Found Prototype Protection 30352 | -1/Command | Build established: Machinist-Sprinter 32348 | -1/Command | Found Prototype Device 32348 | -1/Command | Identified Adv. Particle Accelerator 32354 | -1/Command | Found AEGIS Remote Shield 32356 | -1/Command | Found Zero-point Reactor 32361 | -1/Command | Found Vortex Chain Reactor 32453 | -1/Command | Discovered exit to Surface (range 9) 32558 | -1/Command | Attacked by Warlord forces 32575 | -1/Command | Identified Exp. Powered Armor 32624 | -1/Command | Found Exp. Target Analyzer 32655 | -1/Command | Found Unknown Piercing Weapon 32656 | -1/Command | Found Unknown Piercing Weapon 32657 | -1/Command | Identified Enh. Force Lance (x2) 32774 | -1/Command | Warped through subspace to slip node 32774 | -1/Command | Discovered new exit (range 4) 32779 | -1/Command | Entered Access_0 32780 | -1/Access_0 | Met Architect 32810 | -1/Access_0 | A6 warped into view 32852 | -1/Access_0 | A5 warped into view 32870 | -1/Access_0 | Found Alien Artifact 32893 | -1/Access_0 | Subspace Access Node disabled 32925 | -1/Access_0 | A4 warped into view 32938 | -1/Access_0 | Subspace Access Node disabled 32950 | -1/Access_0 | Subspace Access Node disabled 32961 | -1/Access_0 | Subspace Access Node disabled 33007 | -1/Access_0 | Destroyed A2 33009 | -1/Access_0 | Extracted Singularity Gate Test 138-C access codes from A2's data core 33027 | -1/Access_0 | A3 warped into view 33042 | -1/Access_0 | Found Integrity Redistributor 33047 | -1/Access_0 | Singularity Gate disabled 33048 | -1/Access_0 | Singularity Gate disabled 33104 | -1/Access_0 | Destroyed A3 33122 | -1/Access_0 | Used Integrity Redistributor, redistributed integrity from core (-89) 33146 | -1/Access_0 | Destroyed Architect 33149 | -1/Access_0 | Extracted unknown sensor trigger ID from Architect's data core 33175 | -1/Access_0 | Found Alien Artifact 33176 | -1/Access_0 | Found Zero-point Reactor 33223 | -1/Access_0 | Destroyed A6 33306 | -1/Access_0 | Destroyed A5 33317 | -1/Access_0 | Destroyed A8 33329 | -1/Access_0 | Destroyed A4 33421 | -1/Access_0 | Found Exp. Phase Shifter 33547 | -1/Access_0 | Used Integrity Redistributor, redistributed integrity from core (-74) 33551 | -1/Access_0 | Found Prototype Slashing Weapon 33552 | -1/Access_0 | Identified Vibroblade 33554 | -1/Access_0 | Destroyed 9 combat bots 33555 | -1/Access_0 | Found Tactical Quantum Warhead 33765 | -1/Access_0 | Found Sigix Corpse 33831 | -1/Access_0 | Found Prototype Processor 33831 | -1/Access_0 | Identified Exp. Core Analyzer 33947 | -1/Access_0 | Identified Hpw. Transdimensional Reconstructor (x2) 33947 | -1/Access_0 | Warped through subspace to slip node 33947 | -1/Access_0 | Discovered exit to Surface (range 8) 33948 | -1/Access_0 | Warped through subspace to slip node 33949 | -1/Access_0 | Warped through subspace to slip node 33951 | -1/Access_0 | Destroyed 8 combat bots 33952 | *** | Establishing 0b11! Last Messages --------------- 33920_ Enhanced Grunt suffers critical hit. 33920_ Destroyed Adv. Particle Charger. 33923_ Enhanced Grunt suffers critical hit. 33923_ Destroyed Unknown Energy Cannon. 33923_ CR-A16's Behemoth Slayer follow-up attack on Enhanced Grunt. 33923_ Enhanced Grunt destroyed. 33924_ Destroyed Adv. Particle Charger. 33926_ Enhanced Grunt suffers critical hit. 33926_ Destroyed Antimatter Reactor. 33928_ Enhanced Grunt suffers critical hit. 33928_ Enhanced Grunt destroyed. 33930_ Enhanced Grunt suffers critical hit. 33930_ Enhanced Grunt destroyed. 33933_ Dropped Exp. Energy Well. 33934_ Extracted 1000 energy. 33934_ Acquired Exp. Energy Well. 33947_ Identified Hpw. Transdimensional Reconstructor. 33947_ Warped through subspace, drawn to slip node. 33947_ EXIT=FOUND: SURFACE 33948_ Warped through subspace, drawn to slip node. Map ----- +----------------------------------------------------+ | | | | | | | | | | | | | | | | | | | | | | | | | | | | | | | | | ?????????????????????????????????????????????????? | | ?????????????????????????????????????????????????? | | ?????????????????????????????????????????????????? | | ?????????????????????????????????????????????????? | | ?????????????????????????????????????????????????? | | ?????????????????????????????????????????????????? | | ????????????????????????###??????????????????????? | | ???????????????????????## ##?????????????????????? | | ???????????????????????# #?????????????????????? | | ???????????????????????# @ #?????????????????????? | | ??????????????????????## #?????????????????????? | | ??????????????????????# #?????????????????????? | | ??????????????????????# ##?????????????????????? | | ??????????????????????## #?????????????????????? | | ??????????????????????# #?????????????????????? | | ??????????????????????# ##?????????????????????? | | ??????????????????????# < #?????????????????????? | | ??????????????????????# ##?????????????????????? | | ??????????????????????## #??????????????????????? | | ???????????????????????####??????????????????????? | | ?????????????????????????????????????????????????? | | ?????????????????????????????????????????????????? | | ?????????????????????????????????????????????????? | | ?????????????????????????????????????????????????? | | ?????????????????????????????????????????????????? | | ?????????????????????????????????????????????????? | | ?????????????????????????????????????????????????? | | ?????????????????????????????????????????????????? | | ?????????????????????????????????????????????????? | | ?????????????????????????????????????????????????? | | ?????????????????????????????????????????????????? | | ?????????????????????????????????????????????????? | | ?????????????????????????????????????????????????? | | ?????????????????????????????????????????????????? | +----------------------------------------------------+ Best States ------------- Heat Dissipation 172 Energy Generation 101 Energy Capacity 1700 Matter Stores 300 Matter Capacity 300 Sight Range 16 Robot Scan Range 30 Terrain Scan Density 10 Jamming Range 16 Cloak Strength 4 Power Amplification 20 Additional Mass Support 50 Armor Coverage 1300 Resistance: KI 15 Resistance: TH 15 Resistance: EX 15 Resistance: EM 90 Resistance: I 15 Resistance: S 15 Resistance: P 15 Propulsion Shielding 90 Utility Shielding 90 Weapon Shielding 100 Melee Speed Boost 50 Phase Shifting 20 Evasion (%) 100 Melee Accuracy 24 Target Analysis 12 Core Analysis 15 Armor Integrity Analysis 90 Recoil Reduction 3 Offensive Hacking 84 Defensive Hacking 25 Item Schematics ----------------- Med. Storage Unit | -10/Mines | Hacked Cmb. Antigrav System | -8/Materials | Scanalyzed Imp. Light Armor Plating | -8/Materials | Extracted Imp. Utility Shielding | -7/Factory | Hacked Exp. Sensor Array | -7/Data Miner | Free Exp. Terrain Scanner | -7/Data Miner | Free Exp. Targeting Computer | -7/Data Miner | Free Cloaking Device | -7/Data Miner | Free Exp. Flexi-carbon Leg | -7/Data Miner | Free Lgt. Regenerative Plating | -7/Data Miner | Free Combat Drone Bay | -7/Data Miner | Free Imp. VTOL Module | -6/Factory | Scanalyzed Biomechanical Wings | -6/Factory | Hacked Thermal Defense Suite | -6/Factory | Scanalyzed Fusion Compressor | -6/Factory | Hacked Bore Cannon | -6/Zion | Free Plasma Flamer | -6/Zion | Free Exp. Cesium-ion Thruster | -5/Factory | Hacked Exp. Propulsion Shielding | -5/Factory | Hacked Lrn. Missile Launcher | -5/Factory | Extracted Imp. Medium Treads | -5/Factory | Extracted Com. HERF Cannon | -5/Factory | Hacked Cmb. Linear Gravjet | -5/Factory | Downloaded Adv. Powered Armor | -5/Factory | Hacked Imp. Plasma Cutter | -5/Factory | Hacked Exp. Target Analyzer | -4/Factory | Scanalyzed Quantum Capacitor | -4/Factory | Scanalyzed Assault Drone Bay | -4/Zhirov | Free Exp. Heat Sink | -4/Zhirov | Free Exp. Optical Array | -4/Zhirov | Free Imp. Arc Thrower | -4/Zhirov | Free Exp. Coolant Injector | -3/Research | Scanalyzed Exp. Q-thruster | -3/Research | Hacked Vortex Chain Reactor | -3/Research | Scanalyzed Adv. Reaction Control System | -3/Research | Hacked Exp. Armor Integrity Analyzer | -3/Research | Hacked Dimensional Manipulator | -3/Testing | Hacked Spectral Analyzer | -3/Testing | Scanalyzed Imp. Fusion Compressor | -3/Testing | Scanalyzed Tesla Bomb Launcher | -3/Testing | Scanalyzed Tactical Quantum Warhead | -3/Testing | Scanalyzed Particle Accelerator | -3/Testing | Scanalyzed Hdn. Centrium Wheel | -3/Testing | Scanalyzed Hvy. Hardcell Cannon | -3/Testing | Scanalyzed Femtoactuators | -2/Research | Hacked Nanosword | -2/Quarantine | Scanalyzed Exp. Weapon Cycler | -2/Section 7 | Hacked Exp. Melee Analysis Suite | -1/Access | Hacked Exp. Force Field | -1/Access | Hacked Robot Schematics ------------------ S-27 Virus | -7/Data Miner | Free G-50 Soldier | -7/Data Miner | Free X-72 Disruptor | -7/Data Miner | Free I-36 Angel | -7/Data Miner | Free K-01 Serf | -2/Research | Hacked Fabricated ------------ Imp. Utility Shielding | x2 | -7/Factory L-41 Fighter | x3 | -7/Factory | Preloaded Exp. Sensor Array | x1 | -6/Factory Biomechanical Wings | x1 | -6/Factory Biomechanical Wings | x1 | -6/Factory Biomechanical Wings | x1 | -6/Factory Exp. Cesium-ion Thruster | x1 | -5/Factory Exp. Cesium-ion Thruster | x1 | -5/Factory Exp. Propulsion Shielding | x1 | -5/Factory Adv. Powered Armor | x1 | -5/Factory Exp. Propulsion Shielding | x1 | -5/Factory Adv. Powered Armor | x1 | -4/Factory Exp. Propulsion Shielding | x1 | -4/Factory Exp. Q-thruster | x1 | -3/Research Exp. Q-thruster | x1 | -3/Research Vortex Chain Reactor | x1 | -3/Research Vortex Chain Reactor | x1 | -3/Research Dimensional Manipulator | x1 | -3/Testing Dimensional Manipulator | x1 | -3/Testing Exp. Armor Integrity Analyzer | x1 | -3/Testing Femtoactuators | x1 | -2/Research Exp. Melee Analysis Suite | x1 | -1/Access Exp. Melee Analysis Suite | x1 | -1/Access Exp. Melee Analysis Suite | x1 | -1/Access Alien Tech Used ----------------- Integrated Dissipator Core Cannon Sigix Broadsword Core Stripper Subatomic Replicator Integrated Singularity Reactor Integrated Heat Negator Core Membrane LRC Energy Well LRC Armor Transdimensional Reconstructor Integrity Redistributor High-powered Transdimensional Reconstructor Achievements -------------- None Challenges ------------ None Game ------ Seed HugeControlNanovents Manual? 0 Play Time 14:41:38 Cumulative 937.8 hours Start 2020.10.10 @ 00:12:17 End 2020.10.12 @ 02:17:01 Sessions 5 Manual Loads 0 Difficulty Rogue Special Mode None Game No. 323 Rogue 323 Adventurer 0 Explorer 0 Win Type 1 Total 49 Types 11/14/9/3/1/1/8/1/1 Lore% 97 Gallery% 95 Achievement% 83 Wizard Run 0 Options --------- ASCII 0 Keyboard 0 Movement Numpad Keybinds 0 Fullscreen 2 Font 24/Smallcaps Map View 76x50 Tactical HUD 1 Map Filters NONE Filters NONE Steam 1 RUN: 24fc6d0c-136c-4de4-8afe-e9bb6b7680b1